Workbook

Sheet Cover Page
D1: Add company logo
K2: Template version 25.1a (for incinerators) - 27/11/25
K4: Note that there is another version of this template available for co-incinerators
B8: Add photo
K13: Notes:
K14: This template may require adjustments by individual operators to meet specific reporting requirements as defined in the site Permit(s)
B29: Annual Performance Report 2025
B31: Permit EPR/JP3135DK
B33: Kemsley Generating Station
B35: K3 CHP
B37: enfinium K3 CHP Operations Limited
B39: Year: | C39: 2025
B41: Address: | C41: Barge Way, Sittingbourne, Kent, ME10 2FP
B43: Tel: | C43: 01795 685740
B45: Email: | C45: luke.clothier@enfinium.co.uk
B47: Prepared by: | C47: Luke Clothier | F47: Position: | G47: Environmental Officer
B49: Approved by: | C49: Stuart Kirk | F49: Position: | G49: Plant Manager
B51: Version: | C51: 1
B53: Issue Date: | C53: 28/01/26

Sheet Facility Info
A1: =+'Cover Page'!$B$29 -> Annual Performance Report 2025 | E1: =+'Cover Page'!$B$33 -> Kemsley Generating Station
A3: Plant Description and Design | K3: Notes:
A5: The Kemsley Energy Recovery Facility (ERF) forms part of the Kemsley Paper Mill installation comprising of the DS Smith Kemsley Paper Mill and the E.On combined heat and power facility. It is located at grid reference 592170,166640 to the east of Kemsley, 3 km north of Sittingbourne and 2.5 km south east of Iwade. The installation consists of two combustion lines and processes up to 657,000 tonnes of residual waste per annum (tpa); primarily commercial and industrial (C&I) waste and residual Municipal Solid Waste (MSW) which is collected and delivered by external waste management companies. Energy is recovered in the process by utilising the steam generated in the boiler to drive a turbine to generate electricity. Approximately 69MW of electricity can be exported to grid per hour and 55MWth per hour of steam can be supplied to neighbouring businesses (the paper mill when it is running at capacity). Recyclable materials in the form of incinerator bottom ash (IBA) and metals from the IBA are also recovered from the process. The existing permit (Permit number EPR/JP3135DK) allows the facility to accept municipal, industrial and commercial waste and undertake the following activities: • Receipt and storage of waste pending processing; • Electricity and steam generation; and • Disposal of waste arising (incinerator bottom ash (IBA) and air pollution control residues (APCR). | K5: Include summary of plant design, design capacity, no. of combustion lines, electrical and heat capacity and any other general information that describes the facility, its location and purpose
A20: Summary of Operational Processes and Procedures
A22: Municipal solid wastes and commercial wastes accepted at the installation are delivered in covered vehicles or containers. All vehicles delivering the waste are weighed in at the weighbridge before entering the Tipping Hall and being allowed to discharge waste. The residual waste is discharged into the bunker with assistance using mobile plant and is utilised as feedstock for the EfW. The waste in the bunker is mixed with a crane to create a homogenous feedstock and to prevent anaerobic conditions and excess odour. Waste is loaded into the incinerator, using the crane, via the feed hopper. The facility processes waste using air cooled, moving grate technology. The grate is split into 5 zones; zone 1 is the drying zone; 2-3 are the main combustion zones and 4-5 are the burn out zones. Primary and secondary air supply is controlled to ensure good combustion conditions, additional support in combustion is provided through tertiary air injection. A temperature of at least 850°C for at least 2 seconds (T2S) is achieved. After the waste has been burned the remaining unburnt material, called incinerator bottom ash (IBA) is quenched in water. The bottom ash is transported by conveyor to an indoor storage area. The IBA is stored here until it is sent off site to a suitably licensed waste treatment facility for re-processing/recovery. The flue gas is treated within the dry Flue Gas Treatment (FGT) system to reduce the level of pollutants emitted and to comply with the requirements of the Industrial Emissions Directive (IED) and the Environmental Permit. Oxides of Nitrogen (NOx) are abated using dry urea; acid gases such as Hydrogen Chloride (HCl) and Sulphur Dioxide (SO2) are abated using hydrated lime injection. For dioxins and mercury, Powdered Activated Carbon (PAC) abatement is used. Fabric bag filters are utilised for the abatement of particulate matter and also to collect the by-products from both reactions known as Air Pollution Control Residue (APCr) which is transferred to a silo then to a tanker (or sealed bags are sometimes used) for removal from the facility and disposal at a suitably licenced premises. Following clean up, the flue gas is emitted to air through the 90m high stack. The flue gases entering the stack are continuously monitored for HCl, SO2, TOC, CO, NOx, NH3 and Particulates against limits as laid down in the Environmental Permit. The heat from the combustion process is used to convert water into high-pressure steam, that steam then powers a turbine to generate electricity for internal use and for export to the National Grid. The facility also has combined heat and power (CHP) capability and supplies the adjacent DS Smith paper mill with steam. Spent steam from the turbine is converted back to condensate in an air-cooled condenser, which feeds back into the condensate tank. The facility is designed to export up to 69MW of electricity (permitted electrical generation capacity of 74MWe) to the grid, and 55 MWth of steam (permitted heat export capacity of 204 MWth) to the paper mill when it is running at capacity. The facility is certified to ISO 45001, 9001 and 14001 and operates an accredited Management System housing the processes and procedures to be followed. The facility has procedures in place including emergency procedures, operating instructions, method statements and risk assessments. All health, safety and environmental incidents, events and resulting investigations and actions are managed within the companies EHS reporting system. The facility has a Computer Maintenance Management System (CMMS) in place housing all maintenance tasks and defect reporting. Planned outages take place at specified intervals to allow for boiler cleaning, statutory and essential maintenance to maintain plant reliability and efficiency. | K22: Include summary of key processes and procedures such as (but not limited to); waste reception, control rooms, grate, bed and boiler, energy & heat generation, cooling systems, residue management, emission controls, health and safety systems, maintenance

Sheet Operational Data
A1: =+'Cover Page'!$B$29 -> Annual Performance Report 2025 | E1: =+'Cover Page'!$B$33 -> Kemsley Generating Station
A3: Operational Data
A4: Plant Size: | B4: 657000 | D4: tonnes pa | J4: Notes:
A5: Nominal net thermal input: | B5: 204 | C5: MWth | J5: * Export capacity = nominal generation capacity at the generator terminals minus nominal parasitic load. ** CHP and district heating plants only - put N/A if no heat export. *** Combusted tonnage = tonnes delivered in period + (tonnes in bunker at start of period – tonnes in bunker at end of period), or equivalent calculation depending on plant type **** Availability Definition: The availability of a line is to be calculated by the number of hours the line reported Continuously Monitored emission levels to the Regulator through the calendar year divided by the total number of hours in that year. The overall plant availability is calculated as the mean of all lines in the plant. For clarity this includes periods of abnormal operation. Rationale: The primary function of an Energy from Waste facility is the disposal of waste. It follows therefore that the availability of a plant is determined by the period of time a facility spends undertaking this activity. *****NCV of waste: This should be completed for all plants which have a boiler. Calculate using total thermal power produced by boiler/boiler efficiency, or other suitable calculation.
A6: Nominal electrical export capacity*: | B6: 68.86 | C6: MWe
A7: Nominal heat export capacity**: | B7: 55 | C7: MWth
A8: No. of combustion lines: | B8: 2 | C8: No. of steam turbines: | E8: 1
A10: Waste types received | B10: Unit | C10: Q1 | D10: Q2 | E10: Q3 | F10: Q4 | G10: Year Total | H10: %
A11: Household / Local Authority | B11: tonnes | C11: 75546 | D11: 93992.44 | E11: 91348.9 | F11: 87406.42 | G11: =SUM(C11:F11) -> 348293.76 | H11: =IF(G11>0,G11/$G$21,"-") -> 0.697899711
A12: Commercial & Industrial | C12: 18399 | D12: 26466.76 | E12: 22320.02 | F12: 28264.1 | G12: =SUM(C12:F12) -> 95449.88 | H12: 0.1912593659
A13: Hazardous | C13: 0 | D13: 0 | E13: 0 | F13: 0 | G13: 0 | H13: -
A14: Clinical | C14: 0 | D14: 0 | E14: 0 | F14: 0 | G14: 0 | H14: -
A15: Waste wood (biomass) | C15: 0 | D15: 0 | E15: 0 | F15: 0 | G15: 0 | H15: -
A16: Refuse Derived Fuel (incl. SRF) - H'hold/LA | C16: 0 | D16: 0 | E16: 0 | F16: 0 | G16: =SUM(C16:F16) -> 0 | H16: -
A17: Refuse Derived Fuel (incl. SRF) - C&I | C17: 12833 | D17: 13593.32 | E17: 10844.66 | F17: 18045.28 | G17: 55316.26 | H17: 0.1108409231
A18: Other [Please specify] | C18: 0 | D18: 0 | E18: 0 | F18: 0 | G18: 0 | H18: -
A19: Other [Please specify] | C19: 0 | D19: 0 | E19: 0 | F19: 0 | G19: 0 | H19: -
A20: Other [Please specify] | C20: 0 | D20: 0 | E20: 0 | F20: 0 | G20: 0 | H20: -
A21: Total waste received | C21: =SUM(C11:C20) -> 106778 | D21: =SUM(D11:D20) -> 134052.52 | E21: =SUM(E11:E20) -> 124513.58 | F21: =SUM(F11:F20) -> 133715.8 | G21: 499059.9
A22: Rejected Waste | C22: 0 | D22: 0 | E22: 0 | F22: 0 | G22: =SUM(C22:F22) -> 0 | H22: =IF(G22>0,G22/$G$21,"-") -> -
A23: Unprocessed waste transferred out | C23: 0 | D23: 0 | E23: 0 | F23: 0 | G23: =SUM(C23:F23) -> 0 | H23: =IF(G23>0,G23/$G$21,"-") -> -
A24: Total waste combusted *** | C24: 107583 | D24: 133713 | E24: 123427 | F24: 135717 | G24: =SUM(C24:F24) -> 500440
A26: Energy Usage / Export | B26: Unit | C26: Q1 | D26: Q2 | E26: Q3 | F26: Q4 | G26: Year Total | H26: KWh/te | J26: Password for protected cells A password has been set to prevent accidental editing of cells with formulae. If you still need to make an edit for some reason then the password = 1234
A27: Power generated at generator terminals | B27: MWh | C27: 38902 | D27: 0 | E27: 62363 | F27: 89773 | G27: =SUM(C27:F27) -> 191038 | H27: =IF(G27>0,G27*1000/$G$24,"-") -> 381.7400687
A28: Power exported to grid and other external user(s) | C28: 34110 | D28: 0 | E28: 53887 | F28: 77657 | G28: =SUM(C28:F28) -> 165654 | H28: =IF(G28>0,G28*1000/$G$24,"-") -> 331.0167053
A29: Power imported | C29: 3260.6 | D29: 11206 | E29: 3418.9 | F29: 77.8 | G29: 17963.3 | H29: =IF(G29>0,G29*1000/$G$24,"-") -> 35.89501239
A30: Indicative parasitic load | B30: % | C30: =IF(C27>0,(C27-C28)/C27,"-") -> 0.1231813274 | D30: =IF(D27>0,(D27-D28)/D27,"-") -> - | E30: 0.1359139233 | F30: 0.134962628 | G30: =IF(G27>0,1-G28/(G27+G29),"-") -> 0.2074020592
A31: Thermal Energy Exported ** | C31: 69908 | D31: 119921 | E31: 94843 | F31: 103373 | G31: =SUM(C31:F31) -> 388045 | H31: =IF(G31>0,G31*1000/$G$24,"-") -> 775.4076413
A32: R1 value (if applicable) | B32: R1 | C32: - | D32: - | E32: - | F32: - | G32: 0.65
A34: Waste Disposal & Recovery | B34: Unit | C34: Q1 | D34: Q2 | E34: Q3 | F34: Q4 | G34: Year Total | H34: % inputs
A35: APC Residues - produced | B35: tonnes | C35: 2313 | D35: 3397 | E35: 3256 | F35: 3980 | G35: =SUM(C35:F35) -> 12946 | H35: =IF(G35>0,G35/$G$24,"-") -> 0.02586923507
A36: IBA - produced | C36: 22879 | D36: 27293 | E36: 25608 | F36: 26626 | G36: 102406 | H36: =IF(G36>0,G36/$G$24,"-") -> 0.2046319239
A37: Metals recycling | C37: 397.57 | D37: 245.84 | E37: 2813.5 | F37: 4480.56 | G37: =SUM(C37:F37) -> 7937.47 | H37: 0.01586098234 | J37: Note From Operator: IBA off-taker Analyisis reports avaliable from Q3 2025 onwards
A38: Other | C38: 0 | D38: 0 | E38: 0 | F38: 0 | G38: =SUM(C38:F38) -> 0 | H38: -
A39: Other | C39: 0 | D39: 0 | E39: 0 | F39: 0 | G39: 0 | H39: -
A40: Other | C40: 0 | D40: 0 | E40: 0 | F40: 0 | G40: 0 | H40: -
A42: Raw Material Usage | B42: Unit | C42: Q1 | D42: Q2 | E42: Q3 | F42: Q4 | G42: Year Total | H42: Qty./te
A43: Mains Water | B43: ltrs | C43: 1034000 | D43: 1592000 | E43: 2126000 | F43: 2505000 | G43: =SUM(C43:F43) -> 7257000 | H43: =IF(G43>0,G43/$G$24,"-") -> 14.50123891
A44: Other Water | B44: ltrs | C44: 0 | D44: 0 | E44: 0 | F44: 0 | G44: 0 | H44: =IF(G44>0,G44/$G$24,"-") -> -
A45: Ammonia | B45: kgs | C45: 0 | D45: 0 | E45: 0 | F45: 0 | G45: 0 | H45: -
A46: Urea | B46: kgs | C46: 165744 | D46: 203420 | E46: 195951 | F46: 230861 | G46: =SUM(C46:F46) -> 795976 | H46: 1.590552314
A47: Activated Carbon | B47: kgs | C47: 37067 | D47: 31577 | E47: 33612 | F47: 35289 | G47: 137545 | H47: 0.2748481336
A48: Lime / hydrated lime | B48: kgs | C48: 913000 | D48: 1495000 | E48: 1570000 | F48: 2028000 | G48: 6006000 | H48: 12.00143873
A49: Fuel oil | B49: ltrs | C49: 516925 | D49: 244837 | E49: 645562 | F49: 302089 | G49: 1709413 | H49: 3.415820078
A50: Gas | B50: m3 | C50: 0 | D50: 0 | E50: 0 | F50: 0 | G50: 0 | H50: -
A51: Other | C51: 0 | D51: 0 | E51: 0 | F51: 0 | G51: 0 | H51: -
A53: Summary | B53: Line/Unit | C53: Q1 | D53: Q2 | E53: Q3 | F53: Q4 | G53: Year Total | I53: Hrs in year
A54: Availability of waste combustion by line, hrs **** | B54: 1 | C54: 1502.986667 | D54: 1922.796667 | E54: 1705.483333 | F54: 1556 | G54: =SUM(C54:F54) -> 6687.266667 | H54: =+G54/$I$54 -> 0.7633866058 | I54: 8760 | J54: Change this figure to 8784 in a leap year
B55: 2 | C55: 1262.313333 | D55: 1614.22 | E55: 1672.166667 | F55: 2018.35 | G55: 6567.05 | H55: =+G55/$I$54 -> 0.749663242
B56: 3 | C56: 0 | D56: 0 | E56: 0 | F56: 0 | G56: 0 | H56: 0
B57: 4 | C57: 0 | D57: 0 | E57: 0 | F57: 0 | G57: 0 | H57: 0
B58: 5 | C58: 0 | D58: 0 | E58: 0 | F58: 0 | G58: =SUM(C58:F58) -> 0 | H58: 0
A59: Hours of turbine operations, hrs | B59: 1 | C59: 900 | D59: 0 | E59: 1404 | F59: 2187 | G59: 4491 | H59: 0.5126712329
A60: Hours of turbine operations, hrs | B60: 2 | C60: 0 | D60: 0 | E60: 0 | F60: 0 | G60: 0 | H60: 0
A61: Hours of heat / steam export** | B61: hours | C61: 1528 | D61: 2184 | E61: 1739 | F61: 2116 | G61: 7567 | H61: =IF(B61>0,G60/I54,"n/a") -> 0
A62: Net calorific value of waste***** | B62: MJ/kg | C62: 8.962 | D62: 10.877 | E62: 11.044 | F62: 10.744 | G62: 10
A63: Abnormal operation events | B63: qty. | C63: 0 | D63: 1 | E63: 0 | F63: 0 | G63: 1 | H63: =IF(G63>0,"yes","no") -> yes
A64: Abnormal operation duration | B64: hours | C64: 0 | D64: 0.5 | E64: 0 | F64: 0 | G64: 0.5 | H64: =+(G64)/I54 -> 5.707762557e-05
A65: Permit Breaches | B65: qty. | C65: 0 | D65: 0 | E65: 1 | F65: 0 | G65: 1 | H65: =IF(G65>0,"yes","no") -> yes

Sheet Operational Summary
A1: =+'Cover Page'!$B$29 -> Annual Performance Report 2025 | E1: =+'Cover Page'!$B$33 -> Kemsley Generating Station
A3: Summary of Plant Operations and Maintenance during the reporting year | K3: Notes:
A5: The plant performance (boiler and turbine availability) fell below that recorded in 2024. The thermal energy produced and steam energy delivered to D.S. Smith remains in line with expectations and previous years. Waste throughput and electrical power was impacted by the major turbine outage required between February and August 2025. The facility continues to maintain safe and environmentally compliant operations in accordance with the management system and legal requirements Detailed PPM (planned preventative maintenance) processes, in line with equipment manufacturers recommendations, are in place and managed within the companies CMMS (Computerised Maintenance Management System). A planned maintenance outage was completed in 2025. 20 USDTs (Unscheduled Down Time) were conducted throught 2025 where unanticipated shutdowns were required in order to carry out necessary unplanned plant maintainance. In addition to the routine maintenance tasks and statutory inspections, boiler tubes continue to be exchanged and coated to aid in the reduction of further unplanned downtime due to tube leaks and improve plant availability. Upgraded combustion cameras were installed to allow improved monitoring of the combustion process to ensure maximum efficency. | K5: Include summary of key operational and/or maintenance activity undertaken in the year, such as any major component upgrades and/or replacements
A29: =+'Cover Page'!C39 -> 2025 | B29: Plant shut-downs
A30: Start date | B30: End date | C30: Reason for shut-down | K30: Provide a very brief reason for plant shut-down e.g. "Shut-down prior to major outage"; "Emergency shut-down due to boiler tube leak". All emergency shut-downs must be listed (irrespective of whether or not they were required to be reported to the EA). There is no need to include periods of hot-standby here (e.g. to clear feed chute hopper blockages). For clinical waste incinerators which require regular shut-downs for boiler cleaning, there is no need to record these here (only those prior to major outages, and emergency shut-downs).
A31: 7th Jan | B31: 11th Jan | C31: USDT ID Fan Failure
A32: 16th Jan | B32: 17th Jan | C32: USDT Boiler Screw Failure
A33: 20th Jan | B33: 22nd Jan | C33: USDT Tube Leak
A34: 8th Feb | B34: 4th Mar | C34: Annual Outage
A35: 6th Mar | B35: 7th Mar | C35: No power on site due to UKPN regulatory maintenance on SF6 switch gear
A36: 26th Mar | B36: 28th Mar | C36: No power on site due to UKPN regulatory maintenance on SF6 switch gear
A37: 14th Apr | B37: 18th Apr | C37: USDT Tube Leak
A38: 20th Apr | B38: 26th Apr | C38: USDT Tube Leak
A39: 7th May | B39: 10th May | C39: USDT Tube Leak
A40: 14th May | B40: 18th May | C40: USDT Tube Leak
A41: 5th Jun | B41: 12th Jun | C41: USDT Tube Leak
A42: 16th Jun | B42: 26th Jun | C42: USDT Tube Leak
A43: 3rd Jul | B43: 9th Jul | C43: Turbine Blank Outage
A44: 16th Jul | B44: 18th Jul | C44: USDT ID Fan + Steam Gland Failure
A45: 22nd Jul | B45: 22nd Jul | C45: USDT Compensator Repair
A46: 3rd Aug | B46: 9th Aug | C46: Turbine Outage
A47: 26th Aug | B47: 26th Aug | C47: USDT Compensator Repair
A48: 27th Aug | B48: 3rd Sept | C48: USDT Tube Leak
A49: 29th Sept | B49: 30th Sept | C49: USDT Tube Leak
A50: 1st Oct | B50: 9th Oct | C50: USDT Tube Leak
A51: 26th Oct | B51: 27th Oct | C51: USDT APCr Screw Failure
A52: 6th Nov | B52: 10th Nov | C52: USDT Tube Leak
A53: 3rd Dec | B53: 6th Dec | C53: USDT Tube Leak
A54: 10th Dec | B54: 10th Dec | C54: USDT APCr Screw Failure
A55: 22nd Dec | B55: 22nd Dec | C55: USDT ID Fan Failure

Sheet Perf. Form 1
A1: =+'Cover Page'!C39 -> 2025 | B1: Annual Reporting Performance Form 1
A3: =+'Cover Page'!B31 -> Permit EPR/JP3135DK | F3: Operator: | G3: =+'Cover Page'!B37 -> enfinium K3 CHP Operations Limited
A4: Facility: | B4: =+'Cover Page'!B33:I33 -> Kemsley Generating Station | F4: Form: | G4: Performance 1
A6: Reporting Period from: | D6: 1st Jan 2025 | F6: to: | G6: 31st Dec 2025
A8: =+A1 -> 2025 | B8: Annual Reporting of Waste Disposal and Recovery
A9: Waste Description | C9: Disposal Route(s) | E9: Disposal Tonnes | G9: Recovery Tonnes | I9: % / tonne of waste incinerated
A10: 1) Hazardous Wastes
A11: APC Residues | C11: D09 | E11: 13221.47 | G11: 0 | I11: =IF((E11+G11)>0,(E11+G11)/'Operational Data'!$G$24, "-") -> 0.02641969067
A12: IBA | C12: 0 | E12: 0 | G12: 0 | I12: =IF((E12+G12)>0,(E12+G12)/'Operational Data'!$G$24, "-") -> -
I13: =IF((E13+G13)>0,(E13+G13)/'Operational Data'!$G$24, "-") -> -
I14: =IF((E14+G14)>0,(E14+G14)/'Operational Data'!$G$24, "-") -> -
A15: Total Hazardous Waste | E15: =SUM(E11:F14) -> 13221.47 | G15: =SUM(G11:H14) -> 0 | I15: =IF((E15+G15)>0,(E15+G15)/'Operational Data'!$G$24, "-") -> 0.02641969067
A17: 2) Non-Hazardous Wastes
A18: IBA | C18: R11 | E18: 0 | G18: 96469.14 | I18: =IF((E18+G18)>0,(E18+G18)/'Operational Data'!$G$24, "-") -> 0.1927686436
A19: Ferrous Metal | C19: R04 | E19: 0 | G19: 4581.97 | I19: =IF((E19+G19)>0,(E19+G19)/'Operational Data'!$G$24, "-") -> 0.009155882823
A20: Non Ferrous Metal | C20: R04 | E20: 0 | G20: 3355.5 | I20: =IF((E20+G20)>0,(E20+G20)/'Operational Data'!$G$24, "-") -> 0.006705099512
I21: =IF((E21+G21)>0,(E21+G21)/'Operational Data'!$G$24, "-") -> -
I22: =IF((E22+G22)>0,(E22+G22)/'Operational Data'!$G$24, "-") -> -
A23: Total Non-Hazardous Waste | E23: =SUM(E18:F22) -> 0 | G23: =SUM(G18:H22) -> 104406.61 | I23: =IF((E23+G23)>0,(E23+G23)/'Operational Data'!$G$24, "-") -> 0.2086296259
A24: TOTAL WASTE | E24: =+E23+E15 -> 13221.47 | G24: =+G23+G15 -> 104406.61 | I24: =IF((E24+G24)>0,(E24+G24)/'Operational Data'!$G$24, "-") -> 0.2350493166
A26: Operator’s comments :
A31: =+A1 -> 2025 | B31: Annual Reporting of Water and Other Raw Material Usage
A32: Raw Material | E32: Usage | G32: Unit | H32: Specific Usage | J32: Unit
A33: Mains Water | E33: =+'Operational Data'!G43/1000 -> 7257 | G33: m3 | H33: =IF(E33>0,E33/'Operational Data'!$G$24,"-") -> 0.01450123891 | J33: m3/te
A34: Total Water | E34: =+'Operational Data'!G44+'Operational Data'!G43/1000 -> 7257 | G34: m3 | H34: =IF(E34>0,E34/'Operational Data'!$G$24,"-") -> 0.01450123891 | J34: m3/te
A35: Urea / Ammonia | E35: =+'Operational Data'!G46 -> 795976 | G35: kg | H35: =IF(E35>0,E35/'Operational Data'!$G$24,"-") -> 1.590552314 | J35: kg/te | L35: User Note
A36: Activated Carbon | E36: =+'Operational Data'!G47 -> 137545 | G36: kg | H36: =IF(E36>0,E36/'Operational Data'!$G$24,"-") -> 0.2748481336 | J36: kg/te | L36: The formula in Cell E35 was modified as enfinium Kemsley does not use ammonia and exclusively uses urea. The exisitng formula only looked at "Operational Data Tab" Cell G45 Ammonia usage, while the Raw Materials in cell A35 call for Urea/Ammonia. The Formula was updated to look at "Operational Data Tab" Cell G46 so that Urea ussage is accounted for.
A37: Lime / hydrated lime / Sodium Bicarb. | E37: =+'Operational Data'!G48 -> 6006000 | G37: kg | H37: =IF(E37>0,E37/'Operational Data'!$G$24,"-") -> 12.00143873 | J37: kg/te
A39: Operator’s comments :
A40: "Urea / Ammonia" "Usage" cell formula was not adding Ammonia and Urea Raw Material usage year totals from "Operational data" Tab. Formula ammended as Per User note to the right
A43: =+A31 -> 2025 | B43: Annual Reporting of other performance indicators
A44: Parameter | C44: Results by Line
C45: A1 | D45: A2 | E45: A3 | F45: A4 | G45: A5 | I45: Turbine 1 | J45: Turbine 2
A46: Operating hours for the year, hours | C46: 6687.266667 | D46: 6567.05 | E46: N/A | F46: N/A | G46: N/A | I46: 4491.3 | J46: N/A
A47: Number of periods of abnormal operation, qty. | C47: 1 | D47: 0 | E47: N/A | F47: N/A | G47: N/A | I47: N/A | J47: N/A
A48: Cumulative hours of abnormal operation for this year, hours | C48: 0.5 | D48: 0 | E48: N/A | F48: N/A | G48: N/A | I48: N/A | J48: N/A
A50: Operator’s comments :
A54: Signed: | B54: Luke Clothier | G54: Date: | H54: 2026-01-13

Sheet Energy Form 1
A1: =+'Cover Page'!C39 -> 2025 | B1: Annual Reporting of Energy Usage/Export
A3: =+'Cover Page'!B31 -> Permit EPR/JP3135DK | F3: Operator: | G3: =+'Cover Page'!B37 -> enfinium K3 CHP Operations Limited
A5: Facility: | B5: =+'Cover Page'!B33:I33 -> Kemsley Generating Station | F5: Form: | G5: Energy 1
A7: Reporting Period from: | D7: =+'Perf. Form 1'!D6:E6 -> 1st Jan 2025 | F7: to: | G7: =+'Perf. Form 1'!G6:H6 -> 31st Dec 2025
A9: Energy Source | D9: Energy Usage | F9: Unit | G9: Specific Usage (KWh/tonne incinerated
A10: Electricity Produced | D10: =+'Operational Data'!G27 -> 191038 | F10: MWh | G10: =+'Operational Data'!H27 -> 381.7400687
A11: Electricity Imported | D11: =+'Operational Data'!G29 -> 17963.3 | F11: MWh | G11: =+'Operational Data'!H29 -> 35.89501239
A12: Electricity Exported | D12: =+'Operational Data'!G28 -> 165654 | F12: MWh | G12: =+'Operational Data'!H28 -> 331.0167053
A13: Gas Oil | F13: tonnes | G13: 1345.85
A14: Steam/hot water exported | D14: =+'Operational Data'!G31 -> 388045 | F14: GWh | G14: =+'Operational Data'!H31 -> 775.4076413
A18: Operator’s comments :
A19: Gas (fuel) oil used is for plant only. Fuel oil density used 0.82kg/l.
A29: Signed: | B29: Luke Clothier | G29: Date: | H29: 2026-01-13

Sheet Permit Compliance
A1: =+'Cover Page'!$B$29 -> Annual Performance Report 2025 | E1: =+'Cover Page'!$B$33 -> Kemsley Generating Station
A3: Summary of Permit Compliance
A5: Compliance with permit limits for continuously monitored pollutants
A7: The plant met its emission limits as shown in the table below:
A8: Substance | C8: Percentage time compliant during operationNote 1 | L8: Notes:
C9: Half-hourly limit | F9: Daily limit | L9: Note 1: Please report to 2 decimal places, i.e. xx.xx% Note 2: Please enter into this table any permit non-compliances that the EA has given a CCS score for. Please also enter any other non-compliances which you have notified to the EA (e.g. ELV exceedances) but which have not yet been assessed by the EA. There is no need to enter any notifications which were subsequently assessed by the EA not to be permit breaches. Note 3: Please enter information here (rather than just referencing the notifications that were sent to the EA) including where relevant the incineration line reference, pollutant and value of the measured result for any ELV exceedances.
A10: Particulates | C10: 1 | F10: 1
A11: Oxides of nitrogen | C11: 1 | F11: 1
A12: Sulphur dioxide | C12: 1 | F12: 1
A13: Carbon monoxide | C13: 100.00% 95% of 10-min averages | F13: 1
A14: Total organic carbon | C14: 1 | F14: 1
A15: Hydrogen chloride | C15: 1 | F15: 1
A16: Hydrogen fluoride | C16: 1 | F16: 1
C17: xx.xx % | F17: xx.xx %
A19: Summary of non-compliances under the permit Note 2
A20: Date | B20: Summary of non-compliance Note 3 | D20: Reason | G20: Measures taken to prevent reoccurrence | H20: CCS score if applicable*
H21: Impact | I21: Root cause
A22: 2025-09-08 | B22: Abnormal dioxins levels reported following H2 Periodic Monitoring. | D22: No Root Cause Identified | G22: Re-test carried out 11 days after receipt of the atypical report with levels significantly below ELV
A27: *If the Environment Agency (EA) has given a Compliance Classification Scheme (CCS) score due to a permit non-compliance it should be entered here (CCS4 = No impact; CCS3 = Minor impact; CCS2 = Significant impact; CCS1 = Major impact). If the EA has not yet assessed a non-compliance which you have notified to them, these columns should be left blank. Enter N/A if no score was given for the root cause.
A29: Summary of any complaints received and actions to taken to resolve them.
A30: Date | B30: Summary of complaint [including Line/Reference] | E30: Reason (including whether substantiated by the operator or the EA) | H30: Measures taken to prevent reoccurrence
A31: N/A | B31: N/A | E31: N/A | H31: N/A

Sheet Improvements
A1: =+'Cover Page'!$B$29 -> Annual Performance Report 2025 | E1: =+'Cover Page'!$B$33 -> Kemsley Generating Station
A3: Summary of Plant Improvements
A5: Summary of any efficiency improvements that have been completed within the year.
A6: During 2025, the facility implemented a series of targeted plant improvements to maintain and enhance thermal performance, availability, and overall energy efficiency. Both boilers were upgraded with new superheaters to support improved heat recovery and steam conditions. A trial of shock pulse generators as an alternative to conventional sootblowing was completed to assess improved boiler heat-transfer performance and reduced auxiliary steam demand; following the positive outcomes of the trial, the site intends to progress this improvement into routine operation. In addition, furnace monitoring capability was improved through upgraded furnace camera systems to support optimised combustion control. Further efficiency and reliability benefits were delivered through additional Inconel overlay applied to boiler tubework, alongside improvements to boiler refractory tiling to enhance insulation integrity and reduce heat losses.
A16: Summary of any permit improvement conditions that have been completed within the year and the resulting environmental benefits.
A17: Improvement Condition 8 closed out in 2025
A27: Summary of any changes to the plant or operating techniques which required a variation to the permit and a summary of the resulting environmental impact.
A28: N/A
A38: Summary of any other improvements made to the plant or planned to be made and a summary of the resulting environmental benefits.
A39: During 2025, a number of additional improvements were progressed to enhance plant performance and deliver wider environmental benefits. The site engaged with the Abatement Material Recirculation system OEM to review operational performance and identify optimisations to improve reagent utilisation and overall abatement effectiveness, supporting continued control of emissions and reductions in material consumption and associated waste generation. In parallel, ecological landscaping works were undertaken across site green spaces to enhance habitat quality and biodiversity value; these improvements will continue to be developed through further planned works. In support of biodiversity monitoring and evidence-led ecological management, AgriSound bioacoustic bee monitors were installed and operated throughout 2025, providing ongoing insights into pollinator activity and enabling the site to track the outcomes of habitat enhancements over time.

Sheet Public Liasion
A1: =+'Cover Page'!$B$29 -> Annual Performance Report 2025 | E1: =+'Cover Page'!$B$33 -> Kemsley Generating Station
A3: Details of Public & Stakeholder Liaison
A5: Summary of events held during the reporting year.
A6: Date | C6: Description
A7: Monthly | C7: Project meeting with local businesses - KFBP Forum (including DS Smith, E.On, FGS, MVV, McLaren Dalcour, Swale Local Council, Kent Council, Sea Terminals Ridham, national highways).
A9: Quarterly | C9: Environmental meeting with DS Smith and E.On.
A16: List of events planned for next year
A17: Date | C17: Description
A18: Monthly | C18: Project meeting with local businesses - KFBP Forum (including DS Smith, E.On, FGS, MVV, McLaren Dalcour, Swale Local Council, Kent Council, Sea Terminals Ridham, national highways).
A20: Quarterly | C20: Environmental meeting with DS Smith and E.On.
A29: If you wish to be involved in the public liaison programme, please contact enfinium Kemsley via the link below
A30: Contact – enfinium

Sheet CO2 N2O
A1: =+'Cover Page'!$B$29 -> Annual Performance Report 2025 | C1: =+'Cover Page'!$B$33 -> Kemsley Generating Station
A3: Carbon dioxide emissions and biogenic content of waste inputs | F3: Notes:
A5: Carbon dioxide emissions (all types of plant)
B6: Annual mass of carbon dioxide released | C6: tonnes | D6: 533482.715
B7: Annual mass of carbon dioxide released per tonne of waste burned | C7: t CO2 / t waste | D7: 1.066 | F7: Note 1: All permits require operators to continuously monitor CO2 to EN14181 and flow to BS EN 16911-2 (unless otherwise agreed in writing). Operators must therefore use the results from these instruments to calculate their annual CO2 emissions. Where an operator does not have a flow meter calibrated to BS EN 16911-2, the averaged flow measurement from that year's periodic monitoring can be used instead. If the plant does not have calibrated CO2 CEMS, a suitably justified emissions factor can be used.
B8: Annual mass of carbon dioxide released per MWh of energy exported | C8: t CO2 / MWh export | D8: 0.95
B9: Description of how annual carbon dioxide mass emission has been calculated. See Note 1 | C9: Measured - CEMS Data
A10: Nitrous oxide emissions (only plants which use ammonia or urea to abate NOx emissions)
B11: Annual mass emissions of nitrous oxide | C11: tonnes N2O | D11: 13.638
B12: Description of how annual nitrous oxide mass emission has been calculated See Note 2 | C12: Measured - CEMS Data | F12: Note 2: All permits require operators to continuously monitor N2O to EN14181 and flow to BS EN 16911-2, unless otherwise agreed in writing. Operators must therefore use the results from these instruments to calculate their annual N2O emissions. Where an operator does not have a flow meter calibrated to BS EN 16911-2, the averaged flow measurement from periodic monitoring can be used instead. If the plant does not have calibrated N2O CEMS, data from periodic monitoring or a suitably justified emissions factor can be used instead.
A13: Total annual carbon dioxide + nitrous oxide emissions. See Note 3. | C13: tonnes CO2e | D13: 537547 | F13: Note 3: Total annual carbon dioxide and nitrous oxide emissions reported as carbon dioxide equivalent where 1 tonne nitrous oxide is equivalent to 265 tonnes carbon dioxide.
A14: Biogenic CO2 emissions (See Note 4) | F14: Note 4: Only plants combusting residual municipal waste, refuse derived fuel or solid recovered fuel need complete this section.
B15: Percentage of total carbon dioxide emissions arising from biogenic waste | C15: % | D15: 0.55
B16: No. of measurements undertaken | C16: Number | D16: 17
B17: Description of how percentage biogenic carbon dioxide emissions have been measured or calculated. See Note 5 | C17: Amesa B Monitoring | F17: Note 5: The results from C14 sampling should be used if this is carried out at the plant (either via an installed sampler or from spot samples). Otherwise, as an approximation (and in lieu of any more accurate metrics which may be developed in future), the measured or estimated biogenic fraction by net calorific value (see Note 6) can be assumed to be the same as the biogenic CO2 fraction of the total CO2 emissions from the plant.
A18: Biogenic fraction of waste feedstock (See Note 4)
B19: Yearly average biogenic percentage of the waste by net calorific value (NCV) | C19: % | D19: 0.499
B20: Description of how biogenic percentage (by NCV) has been calculated or estimated. See Note 6 | C20: Amesa B monitoring | F20: Note 6: If C14 sampling is carried out at the plant, the methodology set out in the embedded document entitled "Renewable Energy Association Energy Content of Fuels - Description of Method" embedded below can be used to calculate the biogenic percentage by net calorific value. Otherwise, data from waste sampling or BIOMA software can be used; or if none of these are available, an estimated figure with justification or a figure assumed on the basis of up-to-date industry data can be used.
B21: Yearly average biogenic percentage of the waste by mass | C21: % | D21: 0.546
B22: If waste sampling undertaken, no. of samples used to ascertain average biogenic percentages above | C22: Number | D22: N/A
B23: Description of how biogenic percentage (by mass) has been calculated or estimated. See Note 7 | C23: The biogenic content has been determined by an Amesa-b long term CO2 sampler which collects monthly composite samples. These are then analysed by an ISO/IEC 17025:2017 accredited testing laboratory. The analytical method adhered to by the lab is the %biogenic CO2 determination ISO-13833:2013 Annex A (AMS) using radiocarbon isotope C14. | F23: Note 7: Where available, data from waste sampling should be used; otherwise, an estimated figure with justification can be used, or a figure assumed on the basis of up-to-date industry data.
B25: Comments:
B26: Awaiting C14 result for December 2025 due to laboratoy delays

Sheet Residues
A1: =+'Cover Page'!$B$29 -> Annual Performance Report 2025 | E1: =+'Cover Page'!$B$33 -> Kemsley Generating Station
A3: Summary of Residue Handling for the reporting year
A5: Residues generated from the incineration process during the reporting year comprised Incinerator Bottom Ash (IBA) and Air Pollution Control Residues (APCr). IBA was sampled twice per month and submitted to an approved external laboratory for analysis. In addition, both IBA and APCr were subjected to quarterly full hazard classification testing. The hazard assessment results for the reporting period demonstrated that IBA remained non-hazardous in accordance with the ESA Municipal IBA Sampling and Testing Protocol. APCr is inherently hazardous and was therefore managed and disposed of via appropriately permitted hazardous waste routes. All residue sampling and testing activities were undertaken in accordance with the requirements of the Industrial Emissions Directive and the ESA sampling and testing protocol. | K5: Include in here a summary of residue handling regimes and destinations
A28: Residue Quality Monitoring Requirements
A30: Summary of monitoring undertaken and compliance
A31: 24x Samples taken and sent for analysis in 2025 20x Samples taken and sent for Core Hazardous Property Analysis 3x Samples Taken and sent for Permit Compliance Analysis 1x Sample sent for Annual Characterisation (including Permit Compliance Analysis
A38: Commentary on any specific events
A39: Date & Event | C39: Description
A40: November 6th 2025 | C40: HP14 concentration exceedence as a result of atypical Pb levels (primarily due to batteries). Subsequent IBA Sample from 10th November below all HP cocnentration Limits
A52: Residue Quality Monitoring Results
A53: Parameter (unit) | C53: Limit* | D53: Normal Operation
D54: Bottom ash | F54: APC Residues
A55: Loss on Ignition (average %) | C55: <5% | D55: 3.8
A56: Total Organic Carbon (average %) | C56: <3% | D56: 0.7
A57: No. of Assessments Undertaken | C57: --- | D57: 24 | F57: 4
A58: No. of Hazardous Results | C58: --- | D58: 1
A59: * The permit will specify a limit of either 5% loss on ignition or 3% total organic carbon. If both are measured anyway, please enter the results here, even where the limit does not apply.
A61: Comments :
A62: LOI and TOC for the IBA are an average of the 24 samples taken in 2025, no samples exceeded the set limits within the Environmental Permit. All samples were sent for analysis at a fully accredited laboratory.

Sheet Water
A1: =+'Cover Page'!$B$29 -> Annual Performance Report 2025 | E1: =+'Cover Page'!$B$33 -> Kemsley Generating Station
A3: Emissions to Water
A5: Summary of monitoring undertaken and compliance
A6: Water balance is achived by a attenuation pond for rainwater with a closed penstock which can emit to the Swale. Regular visual inspections to check for hydrocarbons and particulate are conducted. The penstock requires manual operation and would only be operated following heavy rainfall to prevent flooding, in which case additional inspections and pH testing would be conducted.
A13: Commentary on any specific events
A14: Date & Event | C14: Description
A15: No Events in 2025
A22: Emissions to Water / Sewer
A23: Parameter | D23: Monitoring Frequency | F23: Limit | G23: Target | H23: Max. | I23: Average
A24: None set in any permits or consents

Sheet Air (periodic)
A1: =+'Cover Page'!$B$29 -> Annual Performance Report 2025 | E1: =+'Cover Page'!$B$33 -> Kemsley Generating Station
A3: Emissions to Air (periodically monitored)
A5: Summary of monitoring undertaken, standards used and compliance | N5: Notes:
A6: Results were below the applicable limits where relevant and were broadly comparable with those reported for 2025, with the exception of atypical dioxin exceedances recorded at emission points A1 and A2 during the H2 periodic monitoring programme (refer to comments). All sampling and analysis were undertaken by MCERTS-certified contractors in accordance with the relevant standards and approved methods. | N6: Template may require adjustment for any bespoke monitoring requirements of permit - please also check that all default ELV values, reference periods and the stated oxygen reference value match those for your plant, and edit if necessary!
A9: Results of emissions to air that are periodically monitored - oxygen reference 11%
A10: Substance | C10: Ref. Period | D10: Emission Limit Value | F10: Average | N10: User to add additional tables as necessary, depending on whether quarterly or bi-annual reporting is required for the compliance year
F11: H1 | G11: H1 | H11: H2 | I11: H2 | J11: H2 | K11: H2 | L11: H2 | M11: H2
F12: A1 | G12: A2 | H12: A1 | I12: A2 | J12: A1 (Retest 1) | K12: A2 (Retest 1) | L12: A1 (Retest 2) | M12: A2 (Retest 2)
A13: Hydrogen fluoride | C13: 1 hr | D13: 1 mg/m3 | F13: 0.18 | G13: 0.14 | H13: 0.11 | I13: 0.094 | J13: N/A | K13: N/A | L13: N/A | M13: N/A
A14: Cd and Tl and their compounds | C14: 0.5-8hrs | D14: 0.02 mg/m3 | F14: 0.00098 | G14: 0.001 | H14: 0.00096 | I14: 0.00089 | J14: N/A | K14: N/A | L14: N/A | M14: N/A
A15: Hg and its compounds | C15: 0.5-8hrs | D15: 0.02 mg/m3 | F15: 0.0017 | G15: 0.0013 | H15: 0.0039 | I15: 0.0014 | J15: N/A | K15: N/A | L15: N/A | M15: N/A
A16: Sb, As, Pb, Cr, Co, Cu, Mn, Ni, V and their compounds | C16: 0.5-8hrs | D16: 0.3 mg/m3 | F16: 0.016 | G16: 0.028 | H16: 0.01 | I16: 0.022 | J16: N/A | K16: N/A | L16: N/A | M16: N/A
A17: Dioxins & Furans (I-TEQ) | C17: 6-8hrs | D17: 0.06 ng/m3 | F17: 0.0055 | G17: 0.054 | H17: 0.081 | I17: 0.14 | J17: 0.0039 | K17: 0.0027 | L17: 0.0038 | M17: 0.0037
A18: PCBs (WHO-TEQ Humans / Mammals) | C18: 6-8hrs | D18: None set ng/m3 | F18: 0.00085 | G18: 0.0099 | H18: 0.008 | I18: 0.0036 | J18: N/A | K18: N/A | L18: N/A | M18: N/A
A19: PCBs (WHO-TEQ Fish) | C19: 6-8hrs | D19: None set ng/m3 | F19: 4.4e-05 | G19: 0.00046 | H19: 0.00036 | I19: 0.00016 | J19: N/A | K19: N/A | L19: N/A | M19: N/A
A20: PCBs (WHO-TEQ Birds) | C20: 6-8hrs | D20: None set ng/m3 | F20: 0.0019 | G20: 0.015 | H20: 0.012 | I20: 0.0049 | J20: N/A | K20: N/A | L20: N/A | M20: N/A
A21: Dioxins & Furans (WHO-TEQ Humans / Mammals) | C21: 6-8hrs | D21: None set ng/m3 | F21: 0.0045 | G21: 0.049 | H21: 0.077 | I21: 0.12 | J21: 0.0036 | K21: 0.0024 | L21: 0.0035 | M21: 0.0033
A22: Dioxins & Furans (WHO-TEQ Fish) | C22: 6-8hrs | D22: None set ng/m3 | F22: 0.0052 | G22: 0.056 | H22: 0.087 | I22: 0.15 | J22: 0.0036 | K22: 0.0027 | L22: 0.0039 | M22: 0.0037
A23: Dioxins & Furans (WHO-TEQ Birds) | C23: 6-8hrs | D23: None set ng/m3 | F23: 0.014 | G23: 0.091 | H23: 0.13 | I23: 0.25 | J23: 0.01 | K23: 0.0059 | L23: 0.0077 | M23: 0.0083
A24: Anthanthrene | C24: 6-8hrs | D24: None set µg/m3 | F24: 0.0014 | G24: 0.0015 | H24: N/A | I24: N/A | J24: N/A | K24: N/A | L24: N/A | M24: N/A
A25: Benzo(a)anthracene | C25: 6-8hrs | D25: None set µg/m3 | F25: 0.0024 | G25: 0.0017 | H25: N/A | I25: N/A | J25: N/A | K25: N/A | L25: N/A | M25: N/A
A26: Benzo(a)pyrene | C26: 6-8hrs | D26: None set µg/m3 | F26: 0.0018 | G26: 0.0015 | H26: N/A | I26: N/A | J26: N/A | K26: N/A | L26: N/A | M26: N/A
A27: Benzo(b)fluoranthene | C27: 6-8hrs | D27: None set µg/m3 | F27: 0.0021 | G27: 0.0023 | H27: N/A | I27: N/A | J27: N/A | K27: N/A | L27: N/A | M27: N/A
A28: Benzo(b)naptho(2,1-d) thiophene | C28: 6-8hrs | D28: None set µg/m3 | F28: 0.0014 | G28: 0.0015 | H28: N/A | I28: N/A | J28: N/A | K28: N/A | L28: N/A | M28: N/A
A29: Benzo(c)phenanthrene | C29: 6-8hrs | D29: None set µg/m3 | F29: 0.0014 | G29: 0.0015 | H29: N/A | I29: N/A | J29: N/A | K29: N/A | L29: N/A | M29: N/A
A30: Benzo(ghi)perylene | C30: 6-8hrs | D30: None set µg/m3 | F30: 0.0019 | G30: 0.0031 | H30: N/A | I30: N/A | J30: N/A | K30: N/A | L30: N/A | M30: N/A
A31: Benzo(k)fluoranthene | C31: 6-8hrs | D31: None set µg/m3 | F31: 0.0014 | G31: 0.0015 | H31: N/A | I31: N/A | J31: N/A | K31: N/A | L31: N/A | M31: N/A
A32: Cholanthrene | C32: 6-8hrs | D32: None set µg/m3 | F32: 0.0014 | G32: 0.0015 | H32: N/A | I32: N/A | J32: N/A | K32: N/A | L32: N/A | M32: N/A
A33: Chrysene | C33: 6-8hrs | D33: None set µg/m3 | F33: 0.0032 | G33: 0.0039 | H33: N/A | I33: N/A | J33: N/A | K33: N/A | L33: N/A | M33: N/A
A34: Cyclopenta(cd)pyrene | C34: 6-8hrs | D34: None set µg/m3 | F34: 0.0061 | G34: 0.0022 | H34: N/A | I34: N/A | J34: N/A | K34: N/A | L34: N/A | M34: N/A
A35: Dibenzo(ai)pyrene | C35: 6-8hrs | D35: None set µg/m3 | F35: 0.0014 | G35: 0.0015 | H35: N/A | I35: N/A | J35: N/A | K35: N/A | L35: N/A | M35: N/A
A36: Dibenzo(ah)anthracene | C36: 6-8hrs | D36: None set µg/m3 | F36: 0.0014 | G36: 0.0015 | H36: N/A | I36: N/A | J36: N/A | K36: N/A | L36: N/A | M36: N/A
A37: Fluoranthene | C37: 6-8hrs | D37: None set µg/m3 | F37: 0.035 | G37: 0.033 | H37: N/A | I37: N/A | J37: N/A | K37: N/A | L37: N/A | M37: N/A
A38: Indeno(123-cd) pyrene | C38: 6-8hrs | D38: None set µg/m3 | F38: 0.0014 | G38: 0.0015 | H38: N/A | I38: N/A | J38: N/A | K38: N/A | L38: N/A | M38: N/A
A39: Naphthalene | C39: 6-8hrs | D39: None set µg/m3 | F39: 0.068 | G39: 0.12 | H39: N/A | I39: N/A | J39: N/A | K39: N/A | L39: N/A | M39: N/A
A40: Comments :
A41: Monitoring of specific individual polycyclic aromatic hydrocarbons (PAHs) was undertaken on an annual basis in accordance with Table S3.1 of Environmental Permit EPR/JP3135DK/V006. During the reporting year, a dioxins exceedance identified during the A1 and A2 Q3 periodic monitoring programme triggered the additional dioxins monitoring requirements set out within the relevant BREF protocol. Two confirmatory re-tests were completed over a one-month period, with results demonstrating consistent performance below the applicable ELV. The re-test results were submitted to the Environment Agency for review.

Sheet Air (CEMS)
A1: =+'Cover Page'!$B$29 -> Annual Performance Report 2025 | I1: =+'Cover Page'!$B$33 -> Kemsley Generating Station
A3: Emissions to Air (continuously monitored)
N4: Notes:
A5: Summary of monitoring undertaken, standards used and compliance | N5: Template may require adjustment for any bespoke monitoring requirements of permit
A6: For 2025, the facility achieved 100% compliance with the limits set in the Environmental Permit for all continiuously monitored determinands. HCl, SO2, NOx, TOC and CO all have limits set out in the Environmental Permit; these determinands are continuously monitored by CEMS's in compliance with EN 14181. NH3, O2, CO2 and Water Vapour and are also continuously monitored by the CEMS's. All instruments are QAL1 compliant and undergo annual checks either in the form of a QAL2 or an Annual Surveillance Test compliant with the requirements of EN 14181. | N6: Please check that all default ELV values match those for your plant and edit if necessary!
N7: Report to 1 decimal place
A11: Results of emissions to air that are continuously monitored (maximum and average values for each line) - oxygen reference 11%
A12: Substance | B12: Reference Period | C12: Emission Limit Value | D12: A1 | F12: A2 | H12: A3 | J12: A4 | L12: A5
D13: Max. | E13: Avg. | F13: Max. | G13: Avg. | H13: Max. | I13: Avg. | J13: Max. | K13: Avg. | L13: Max. | M13: Avg.
A14: Oxides of nitrogen | B14: Daily mean | C14: 180 mg/m3 | D14: 172.9 | E14: 168.9 | F14: 172.3 | G14: 169.3
B15: ½ hourly mean | C15: 400 mg/m3 | D15: 240.6 | E15: 168.9 | F15: 225 | G15: 169.3
A16: Particulates | B16: Daily mean | C16: 5 mg/m3 | D16: 1.6 | E16: 0.5 | F16: 3 | G16: 0.6
B17: ½ hourly mean | C17: 30 mg/m3 | D17: 3 | E17: 0.5 | F17: 20.8 | G17: 0.6
A18: Total Organic Carbon | B18: Daily mean | C18: 10 mg/m3 | D18: 0.7 | E18: 0.2 | F18: 0.6 | G18: 0.2
B19: ½ hourly mean | C19: 20 mg/m3 | D19: 3.9 | E19: 0.2 | F19: 4.6 | G19: 0.2
A20: Hydrogen chloride | B20: Daily mean | C20: 8 mg/m3 | D20: 7 | E20: 3.9 | F20: 7.2 | G20: 4.4
B21: ½ hourly mean | C21: 60 mg/m3 | D21: 12.6 | E21: 3.9 | F21: 11.1 | G21: 4.4
A22: Sulphur dioxide | B22: Daily mean | C22: 40 mg/m3 | D22: 35 | E22: 7.5 | F22: 23.4 | G22: 5.2
B23: ½ hourly mean | C23: 200 mg/m3 | D23: 388.5 | E23: 7.7 | F23: 135.9 | G23: 4.8
A24: Carbon monoxide | B24: Daily mean | C24: 50 mg/m3 | D24: 10.8 | E24: 3.9 | F24: 7 | G24: 2.2
B25: 95%ile 10-min avg * | C25: 150 mg/m3 * | D25: 64 | E25: 3.9 | F25: 27.7 | G25: 2.2
A26: Ammonia | B26: Daily mean | C26: 15 mg/m3 | D26: 3.1 | E26: 0.8 | F26: 0.6 | G26: 0.2
A27: * = delete as appropriate, depending on whether your plant has half-hourly or 10-min CO ELVs
A28: Comments :
A29: K3 facility operates 2 lines (2 boilers and 2 emission points) with 1 common turbine.

Sheet HCl
A1: =+'Cover Page'!$B$29 -> Annual Performance Report 2025 | E1: =+'Cover Page'!$B$33 -> Kemsley Generating Station
A3: Monitoring of Hydrogen Chloride emissions | D3: Whole Installation | G3: See Notes in Cell Q3 | J3: =+A3 -> Monitoring of Hydrogen Chloride emissions | N3: Per Combustion Line | Q3: Notes:
Q4: User to add logic to complete Whole installation, Table A5:G18. From the data in Per Combustion Line, Table J6:O79, subject to No. of lines installed
A5: =+'Cover Page'!C39 -> 2025 | B5: 1/2 Hourly Reference Periods | E5: Daily Reference Periods
A6: mg/Nm3 | B6: 1/2 hourly HCl ELV | C6: Monthly mean of half-hourly averages | D6: Highest half- hourly average | E6: Daily HCl ELV | F6: Monthly mean of daily averages | G6: Highest daily average | J6: =+A5 -> 2025 | K6: mg/Nm3 | L6: Monthly mean of half-hourly averages | M6: Highest half- hourly average | N6: Monthly mean of daily averages | O6: Highest daily average
A7: Jan | B7: 60 | C7: =AVERAGE(L7,L22) -> 5.65 | D7: =MAX(M7,M22) -> 12.61 | E7: 8 | F7: =AVERAGE(N7,N22) -> 5.68 | G7: =MAX(O7,O22) -> 6.97 | J7: A1 | K7: Jan | L7: 5.66 | M7: 12.61 | N7: 5.66 | O7: 6.97
A8: Feb | B8: 60 | C8: =AVERAGE(L8,L23) -> 5.655 | D8: =MAX(M8,M23) -> 11.25 | E8: 8 | F8: =AVERAGE(N8,N23) -> 5.705 | G8: =MAX(O8,O23) -> 6.78 | K8: Feb | L8: 6.06 | M8: 11.25 | N8: 6.04 | O8: 6.78
A9: Mar | B9: 60 | C9: 3.915 | D9: 9.73 | E9: 8 | F9: 3.925 | G9: 6.82 | K9: Mar | L9: 3.51 | M9: 9.73 | N9: 3.5 | O9: 5.16 | Q9: Whole Installation table A5:G18:
A10: Apr | B10: 60 | C10: 3.635 | D10: 8.14 | E10: 8 | F10: 3.64 | G10: 4.3 | K10: Apr | L10: 3.53 | M10: 7.74 | N10: 3.53 | O10: 4.18 | Q10: Mean: for 1/2 hourly and daily periods calculate mean of values across all operational combustion lines for the month
A11: May | B11: 60 | C11: 3.715 | D11: 9.87 | E11: 8 | F11: 3.715 | G11: 4.4 | K11: May | L11: 3.43 | M11: 7.43 | N11: 3.44 | O11: 4.2
A12: Jun | B12: 60 | C12: 4.12 | D12: 8.18 | E12: 8 | F12: 4.12 | G12: 4.42 | K12: Jun | L12: 4.01 | M12: 8.18 | N12: 4.01 | O12: 4.38
A13: Jul | B13: 60 | C13: 3.79 | D13: 7.43 | E13: 8 | F13: 3.815 | G13: 4.52 | K13: Jul | L13: 3.47 | M13: 6.46 | N13: 3.51 | O13: 4.52 | Q13: Maximum: for 1/2 hourly and daily periods use the highest value across all operational combustion lines for the month
A14: Aug | B14: 60 | C14: 4.575 | D14: 10.93 | E14: 8 | F14: 4.56 | G14: 7.19 | K14: Aug | L14: 4.41 | M14: 9.08 | N14: 4.36 | O14: 6.08
A15: Sep | B15: 60 | C15: 3.975 | D15: 8.94 | E15: 8 | F15: 3.98 | G15: 4.5 | K15: Sep | L15: 3.86 | M15: 8.94 | N15: 3.87 | O15: 4.35
A16: Oct | B16: 60 | C16: 3.835 | D16: 9.14 | E16: 8 | F16: 3.83 | G16: 4.72 | K16: Oct | L16: 3.49 | M16: 9.14 | N16: 3.48 | O16: 4.13
A17: Nov | B17: 60 | C17: 3.485 | D17: 7.84 | E17: 8 | F17: 3.48 | G17: 4.74 | K17: Nov | L17: 2.75 | M17: 6.4 | N17: 2.75 | O17: 3.61
A18: Dec | B18: 60 | C18: 3.1 | D18: 8 | E18: 8 | F18: 3.065 | G18: 4.92 | K18: Dec | L18: 2.33 | M18: 4.9 | N18: 2.25 | O18: 2.93
K19: Annual | L19: =AVERAGE(L7:L18) -> 3.875833333 | M19: =MAX(M7:M18) -> 12.61 | N19: =AVERAGE(N7:N18) -> 3.866666667 | O19: =MAX(O7:O18) -> 6.97
J21: =+A5 -> 2025 | K21: mg/Nm3 | L21: Monthly mean of half-hourly averages | M21: Highest half- hourly average | N21: Monthly mean of daily averages | O21: Highest daily average
J22: A2 | K22: Jan | L22: 5.64 | M22: 11.05 | N22: 5.7 | O22: 6.72
K23: Feb | L23: 5.25 | M23: 7.99 | N23: 5.37 | O23: 5.45
K24: Mar | L24: 4.32 | M24: 9.24 | N24: 4.35 | O24: 6.82
K25: Apr | L25: 3.74 | M25: 8.14 | N25: 3.75 | O25: 4.3
K26: May | L26: 4 | M26: 9.87 | N26: 3.99 | O26: 4.4
K27: Jun | L27: 4.23 | M27: 6.86 | N27: 4.23 | O27: 4.42
K28: Jul | L28: 4.11 | M28: 7.43 | N28: 4.12 | O28: 4.45
K29: Aug | L29: 4.74 | M29: 10.93 | N29: 4.76 | O29: 7.19
K30: Sep | L30: 4.09 | M30: 7.51 | N30: 4.09 | O30: 4.5
K31: Oct | L31: 4.18 | M31: 8.08 | N31: 4.18 | O31: 4.72
K32: Nov | L32: 4.22 | M32: 7.84 | N32: 4.21 | O32: 4.74
K33: Dec | L33: 3.87 | M33: 8 | N33: 3.88 | O33: 4.92
K34: Annual | L34: =AVERAGE(L22:L33) -> 4.365833333 | M34: =MAX(M22:M33) -> 11.05 | N34: =AVERAGE(N22:N33) -> 4.385833333 | O34: =MAX(O22:O33) -> 7.19
J36: =+A5 -> 2025 | K36: mg/Nm3 | L36: Monthly mean of half-hourly averages | M36: Highest half- hourly average | N36: Monthly mean of daily averages | O36: Highest daily average
J37: A3 | K37: Jan
K38: Feb
K39: Mar
K40: Apr
K41: May
K42: Jun
K43: Jul
K44: Aug
K45: Sep
K46: Oct
K47: Nov
A48: Comments : | K48: Dec
K49: Annual | L49: =AVERAGE(L37:L48) ->  | M49: =MAX(M37:M48) -> 0 | N49: =AVERAGE(N37:N48) ->  | O49: =MAX(O37:O48) -> 0
J51: =+A5 -> 2025 | K51: mg/Nm3 | L51: Monthly mean of half-hourly averages | M51: Highest half- hourly average | N51: Monthly mean of daily averages | O51: Highest daily average
J52: A4 | K52: Jan
K53: Feb
K54: Mar
K55: Apr
K56: May
K57: Jun
K58: Jul
K59: Aug
K60: Sep
K61: Oct
K62: Nov
K63: Dec
K64: Annual | L64: =AVERAGE(L52:L63) ->  | M64: =MAX(M52:M63) -> 0 | N64: =AVERAGE(N52:N63) ->  | O64: =MAX(O52:O63) -> 0
J66: =+A5 -> 2025 | K66: mg/Nm3 | L66: Monthly mean of half-hourly averages | M66: Highest half- hourly average | N66: Monthly mean of daily averages | O66: Highest daily average
J67: A5 | K67: Jan
K68: Feb
K69: Mar
K70: Apr
K71: May
K72: Jun
K73: Jul
K74: Aug
K75: Sep
K76: Oct
K77: Nov
K78: Dec
K79: Annual | L79: =AVERAGE(L67:L78) ->  | M79: =MAX(M67:M78) -> 0 | N79: =AVERAGE(N67:N78) ->  | O79: =MAX(O67:O78) -> 0

Sheet SO2
A1: =+'Cover Page'!$B$29 -> Annual Performance Report 2025 | E1: =+'Cover Page'!$B$33 -> Kemsley Generating Station
A3: Monitoring of Sulphur dioxide emissions | D3: Whole Installation | G3: See Notes in Cell Q3 | J3: =+A3 -> Monitoring of Sulphur dioxide emissions | N3: Per Combustion Line | Q3: Notes:
Q4: User to add logic to complete Whole installation, Table A5:G18. From the data in Per Combustion Line, Table J6:O79, subject to No. of lines installed
A5: =+'Cover Page'!C39 -> 2025 | B5: 1/2 Hourly Reference Periods | E5: Daily Reference Periods
A6: mg/Nm3 | B6: 1/2 hourly SO2 ELV | C6: Monthly mean of half-hourly averages | D6: Highest half- hourly average | E6: Daily SO2 ELV | F6: Monthly mean of daily averages | G6: Highest daily average | J6: =+A5 -> 2025 | K6: mg/Nm3 | L6: Monthly mean of half-hourly averages | M6: Highest half- hourly average | N6: Monthly mean of daily averages | O6: Highest daily average
A7: Jan | B7: 200 | C7: =AVERAGE(L7,L22) -> 5.185 | D7: =MAX(M7,M22) -> 49.31 | E7: 40 | F7: =AVERAGE(N7,N22) -> 5.265 | G7: =MAX(O7,O22) -> 14.18 | J7: A1 | K7: Jan | L7: 6.27 | M7: 41.32 | N7: 6.27 | O7: 14.18
A8: Feb | B8: 200 | C8: =AVERAGE(L8,L23) -> 9.75 | D8: =MAX(M8,M23) -> 68.75 | E8: 40 | F8: =AVERAGE(N8,N23) -> 9.445 | G8: =MAX(O8,O23) -> 17.12 | K8: Feb | L8: 12.34 | M8: 68.75 | N8: 11.27 | O8: 17.12
A9: Mar | B9: 200 | C9: 9.455 | D9: 80.94 | E9: 40 | F9: 9.555 | G9: 35 | K9: Mar | L9: 11.67 | M9: 65.62 | N9: 11.93 | O9: 35 | Q9: Whole Installation table A5:G18:
A10: Apr | B10: 200 | C10: 7.9 | D10: 76.75 | E10: 40 | F10: 7.66 | G10: 16.07 | K10: Apr | L10: 9.47 | M10: 67.49 | N10: 9.47 | O10: 16.07 | Q10: Mean: for 1/2 hourly and daily periods calculate mean of values across all operational combustion lines for the month
A11: May | B11: 200 | C11: 7.275 | D11: 388.47 | E11: 40 | F11: 7.29 | G11: 21.74 | K11: May | L11: 8.58 | M11: 388.47 | N11: 8.42 | O11: 21.74
A12: Jun | B12: 200 | C12: 4.07 | D12: 43.27 | E12: 40 | F12: 3.995 | G12: 14.17 | K12: Jun | L12: 4.69 | M12: 34.56 | N12: 4.73 | O12: 13.69
A13: Jul | B13: 200 | C13: 4.385 | D13: 48.93 | E13: 40 | F13: 3.895 | G13: 16.77 | K13: Jul | L13: 7.47 | M13: 48.93 | N13: 6.7 | O13: 16.2 | Q13: Maximum: for 1/2 hourly and daily periods use the highest value across all operational combustion lines for the month
A14: Aug | B14: 200 | C14: 3.2 | D14: 54.04 | E14: 40 | F14: 6.07 | G14: 16.55 | K14: Aug | L14: 5.4 | M14: 54.04 | N14: 5.14 | O14: 16.55
A15: Sep | B15: 200 | C15: 3.235 | D15: 74.08 | E15: 40 | F15: 3.11 | G15: 9.18 | K15: Sep | L15: 4.17 | M15: 70.7 | N15: 4.12 | O15: 8.77
A16: Oct | B16: 200 | C16: 5.465 | D16: 126.22 | E16: 40 | F16: 5.46 | G16: 17.83 | K16: Oct | L16: 7.44 | M16: 126.22 | N16: 7.46 | O16: 17.83
A17: Nov | B17: 200 | C17: 5.12 | D17: 61.37 | E17: 40 | F17: 5.14 | G17: 16.32 | K17: Nov | L17: 3.99 | M17: 61.37 | N17: 3.99 | O17: 11.19
A18: Dec | B18: 200 | C18: 9.95 | D18: 135.86 | E18: 40 | F18: 9.83 | G18: 26.89 | K18: Dec | L18: 11.24 | M18: 106.4 | N18: 11.1 | O18: 26.89
K19: Annual | L19: =AVERAGE(L7:L18) -> 7.7275 | M19: =MAX(M7:M18) -> 388.47 | N19: =AVERAGE(N7:N18) -> 7.55 | O19: =MAX(O7:O18) -> 35
J21: =+A5 -> 2025 | K21: mg/Nm3 | L21: Monthly mean of half-hourly averages | M21: Highest half- hourly average | N21: Monthly mean of daily averages | O21: Highest daily average
J22: A2 | K22: Jan | L22: 4.1 | M22: 49.31 | N22: 4.26 | O22: 9.61
K23: Feb | L23: 7.16 | M23: 46.11 | N23: 7.62 | O23: 10.5
K24: Mar | L24: 7.24 | M24: 80.94 | N24: 7.18 | O24: 23.4
K25: Apr | L25: 6.33 | M25: 76.75 | N25: 5.85 | O25: 12.76
K26: May | L26: 5.97 | M26: 49.47 | N26: 6.16 | O26: 15.16
K27: Jun | L27: 3.45 | M27: 43.27 | N27: 3.26 | O27: 14.17
K28: Jul | L28: 1.3 | M28: 38.62 | N28: 1.09 | O28: 16.77
K29: Aug | L29: 1 | M29: 27.54 | N29: 7 | O29: 6.53
K30: Sep | L30: 2.3 | M30: 74.08 | N30: 2.1 | O30: 9.18
K31: Oct | L31: 3.49 | M31: 123.33 | N31: 3.46 | O31: 13.32
K32: Nov | L32: 6.25 | M32: 49.84 | N32: 6.29 | O32: 16.32
K33: Dec | L33: 8.66 | M33: 135.86 | N33: 8.56 | O33: 20.81
K34: Annual | L34: =AVERAGE(L22:L33) -> 4.770833333 | M34: =MAX(M22:M33) -> 135.86 | N34: =AVERAGE(N22:N33) -> 5.235833333 | O34: =MAX(O22:O33) -> 23.4
J36: =+A5 -> 2025 | K36: mg/Nm3 | L36: Monthly mean of half-hourly averages | M36: Highest half- hourly average | N36: Monthly mean of daily averages | O36: Highest daily average
J37: A3 | K37: Jan
K38: Feb
K39: Mar
K40: Apr
K41: May
K42: Jun
K43: Jul
K44: Aug
K45: Sep
K46: Oct
K47: Nov
A48: Comments : | K48: Dec
A49: Highest half hourly elevated SO2 levels of 388.47 in May confirmed as AO | K49: Annual | L49: =AVERAGE(L37:L48) ->  | M49: =MAX(M37:M48) -> 0 | N49: =AVERAGE(N37:N48) ->  | O49: =MAX(O37:O48) -> 0
J51: =+A5 -> 2025 | K51: mg/Nm3 | L51: Monthly mean of half-hourly averages | M51: Highest half- hourly average | N51: Monthly mean of daily averages | O51: Highest daily average
J52: A4 | K52: Jan
K53: Feb
K54: Mar
K55: Apr
K56: May
K57: Jun
K58: Jul
K59: Aug
K60: Sep
K61: Oct
K62: Nov
K63: Dec
K64: Annual | L64: =AVERAGE(L52:L63) ->  | M64: =MAX(M52:M63) -> 0 | N64: =AVERAGE(N52:N63) ->  | O64: =MAX(O52:O63) -> 0
J66: =+A5 -> 2025 | K66: mg/Nm3 | L66: Monthly mean of half-hourly averages | M66: Highest half- hourly average | N66: Monthly mean of daily averages | O66: Highest daily average
J67: A5 | K67: Jan
K68: Feb
K69: Mar
K70: Apr
K71: May
K72: Jun
K73: Jul
K74: Aug
K75: Sep
K76: Oct
K77: Nov
K78: Dec
K79: Annual | L79: =AVERAGE(L67:L78) ->  | M79: =MAX(M67:M78) -> 0 | N79: =AVERAGE(N67:N78) ->  | O79: =MAX(O67:O78) -> 0

Sheet NOx
A1: =+'Cover Page'!$B$29 -> Annual Performance Report 2025 | E1: =+'Cover Page'!$B$33 -> Kemsley Generating Station
A3: Monitoring of Oxides of Nitrogen emissions | D3: Whole Installation | G3: See Notes in Cell Q3 | J3: =+A3 -> Monitoring of Oxides of Nitrogen emissions | N3: Per Combustion Line | Q3: Notes:
Q4: User to add logic to complete Whole installation, Table A5:G18. From the data in Per Combustion Line, Table J6:O79, subject to No. of lines installed
A5: =+'Cover Page'!C39 -> 2025 | B5: 1/2 Hourly Reference Periods | E5: Daily Reference Periods
A6: mg/Nm3 | B6: 1/2 hourly NOx ELV | C6: Monthly mean of half-hourly averages | D6: Highest half- hourly average | E6: Daily NOx ELV | F6: Monthly mean of daily averages | G6: Highest daily average | J6: =+A5 -> 2025 | K6: mg/Nm3 | L6: Monthly mean of half-hourly averages | M6: Highest half- hourly average | N6: Monthly mean of daily averages | O6: Highest daily average
A7: Jan | B7: 400 | C7: =AVERAGE(L7,L22) -> 169.47 | D7: =MAX(M7,M22) -> 203.27 | E7: 180 | F7: =AVERAGE(N7,N22) -> 169.49 | G7: =MAX(O7,O22) -> 170.37 | J7: A1 | K7: Jan | L7: 169.37 | M7: 203.27 | N7: 169.37 | O7: 170.23
A8: Feb | B8: 400 | C8: =AVERAGE(L8,L23) -> 169.555 | D8: =MAX(M8,M23) -> 186.13 | E8: 180 | F8: =AVERAGE(N8,N23) -> 169.6 | G8: =MAX(O8,O23) -> 169.71 | K8: Feb | L8: 169.59 | M8: 181.24 | N8: 169.62 | O8: 169.71
A9: Mar | B9: 400 | C9: 168.56 | D9: 227.05 | E9: 180 | F9: 168.7 | G9: 172.9 | K9: Mar | L9: 168.35 | M9: 227.05 | N9: 168.63 | O9: 172.9 | Q9: Whole Installation table A5:G18:
A10: Apr | B10: 400 | C10: 169.6 | D10: 205.28 | E10: 180 | F10: 169.565 | G10: 170.08 | K10: Apr | L10: 169.56 | M10: 205.28 | N10: 169.56 | O10: 170.04 | Q10: Mean: for 1/2 hourly and daily periods calculate mean of values across all operational combustion lines for the month
A11: May | B11: 400 | C11: 169.135 | D11: 240.59 | E11: 180 | F11: 169.2 | G11: 171.39 | K11: May | L11: 169.39 | M11: 240.59 | N11: 169.4 | O11: 171.39
A12: Jun | B12: 400 | C12: 167.91 | D12: 211.35 | E12: 180 | F12: 167.86 | G12: 170.72 | K12: Jun | L12: 166.41 | M12: 211.35 | N12: 166.34 | O12: 170.36
A13: Jul | B13: 400 | C13: 167.43 | D13: 215.32 | E13: 180 | F13: 167.21 | G13: 170.84 | K13: Jul | L13: 166.94 | M13: 215.32 | N13: 166.68 | O13: 170.84 | Q13: Maximum: for 1/2 hourly and daily periods use the highest value across all operational combustion lines for the month
A14: Aug | B14: 400 | C14: 169.58 | D14: 198.41 | E14: 180 | F14: 169.58 | G14: 170.32 | K14: Aug | L14: 169.6 | M14: 197.94 | N14: 169.61 | O14: 170.32
A15: Sep | B15: 400 | C15: 169.52 | D15: 213.26 | E15: 180 | F15: 169.505 | G15: 170.43 | K15: Sep | L15: 169.64 | M15: 191.24 | N15: 169.64 | O15: 170.06
A16: Oct | B16: 400 | C16: 169.69 | D16: 225 | E16: 180 | F16: 169.68 | G16: 172.33 | K16: Oct | L16: 169.53 | M16: 190.07 | N16: 169.51 | O16: 170.01
A17: Nov | B17: 400 | C17: 169.5 | D17: 200.79 | E17: 180 | F17: 169.52 | G17: 171.25 | K17: Nov | L17: 169.45 | M17: 200.79 | N17: 169.45 | O17: 171.25
A18: Dec | B18: 400 | C18: 169.485 | D18: 200.67 | E18: 180 | F18: 169.49 | G18: 171.28 | K18: Dec | L18: 169.3 | M18: 191.86 | N18: 169.32 | O18: 169.99
K19: Annual | L19: =AVERAGE(L7:L18) -> 168.9275 | M19: =MAX(M7:M18) -> 240.59 | N19: =AVERAGE(N7:N18) -> 168.9275 | O19: =MAX(O7:O18) -> 172.9
J21: =+A5 -> 2025 | K21: mg/Nm3 | L21: Monthly mean of half-hourly averages | M21: Highest half- hourly average | N21: Monthly mean of daily averages | O21: Highest daily average
J22: A2 | K22: Jan | L22: 169.57 | M22: 189.88 | N22: 169.61 | O22: 170.37
K23: Feb | L23: 169.52 | M23: 186.13 | N23: 169.58 | O23: 169.59
K24: Mar | L24: 168.77 | M24: 207.69 | N24: 168.77 | O24: 171.79
K25: Apr | L25: 169.64 | M25: 183.22 | N25: 169.57 | O25: 170.08
K26: May | L26: 168.88 | M26: 221.88 | N26: 169 | O26: 170.6
K27: Jun | L27: 169.41 | M27: 191.16 | N27: 169.38 | O27: 170.72
K28: Jul | L28: 167.92 | M28: 186.36 | N28: 167.74 | O28: 170.41
K29: Aug | L29: 169.56 | M29: 198.41 | N29: 169.55 | O29: 169.93
K30: Sep | L30: 169.4 | M30: 213.26 | N30: 169.37 | O30: 170.43
K31: Oct | L31: 169.85 | M31: 225 | N31: 169.85 | O31: 172.33
K32: Nov | L32: 169.55 | M32: 195.3 | N32: 169.59 | O32: 170.04
K33: Dec | L33: 169.67 | M33: 200.67 | N33: 169.66 | O33: 171.28
K34: Annual | L34: =AVERAGE(L22:L33) -> 169.3116667 | M34: =MAX(M22:M33) -> 225 | N34: =AVERAGE(N22:N33) -> 169.3058333 | O34: =MAX(O22:O33) -> 172.33
J36: =+A5 -> 2025 | K36: mg/Nm3 | L36: Monthly mean of half-hourly averages | M36: Highest half- hourly average | N36: Monthly mean of daily averages | O36: Highest daily average
J37: A3 | K37: Jan
K38: Feb
K39: Mar
K40: Apr
K41: May
K42: Jun
K43: Jul
K44: Aug
K45: Sep
K46: Oct
K47: Nov
A48: Comments : | K48: Dec
K49: Annual | L49: =AVERAGE(L37:L48) ->  | M49: =MAX(M37:M48) -> 0 | N49: =AVERAGE(N37:N48) ->  | O49: =MAX(O37:O48) -> 0
J51: =+A5 -> 2025 | K51: mg/Nm3 | L51: Monthly mean of half-hourly averages | M51: Highest half- hourly average | N51: Monthly mean of daily averages | O51: Highest daily average
J52: A4 | K52: Jan
K53: Feb
K54: Mar
K55: Apr
K56: May
K57: Jun
K58: Jul
K59: Aug
K60: Sep
K61: Oct
K62: Nov
K63: Dec
K64: Annual | L64: =AVERAGE(L52:L63) ->  | M64: =MAX(M52:M63) -> 0 | N64: =AVERAGE(N52:N63) ->  | O64: =MAX(O52:O63) -> 0
J66: =+A5 -> 2025 | K66: mg/Nm3 | L66: Monthly mean of half-hourly averages | M66: Highest half- hourly average | N66: Monthly mean of daily averages | O66: Highest daily average
J67: A5 | K67: Jan
K68: Feb
K69: Mar
K70: Apr
K71: May
K72: Jun
K73: Jul
K74: Aug
K75: Sep
K76: Oct
K77: Nov
K78: Dec
K79: Annual | L79: =AVERAGE(L67:L78) ->  | M79: =MAX(M67:M78) -> 0 | N79: =AVERAGE(N67:N78) ->  | O79: =MAX(O67:O78) -> 0

Sheet TOC
A1: =+'Cover Page'!$B$29 -> Annual Performance Report 2025 | E1: =+'Cover Page'!$B$33 -> Kemsley Generating Station
A3: Monitoring of Total organic carbon emissions | D3: Whole Installation | G3: See Notes in Cell Q3 | J3: =+A3 -> Monitoring of Total organic carbon emissions | N3: Per Combustion Line | Q3: Notes:
Q4: User to add logic to complete Whole installation, Table A5:G18. From the data in Per Combustion Line, Table J6:O79, subject to No. of lines installed
A5: =+'Cover Page'!C39 -> 2025 | B5: 1/2 Hourly Reference Periods | E5: Daily Reference Periods
A6: mg/Nm3 | B6: 1/2 hourly TOC ELV | C6: Monthly mean of half-hourly averages | D6: Highest half- hourly average | E6: Daily TOC ELV | F6: Monthly mean of daily averages | G6: Highest daily average | J6: =+A5 -> 2025 | K6: mg/Nm3 | L6: Monthly mean of half-hourly averages | M6: Highest half- hourly average | N6: Monthly mean of daily averages | O6: Highest daily average
A7: Jan | B7: 20 | C7: =AVERAGE(L7,L22) -> 0.2 | D7: =MAX(M7,M22) -> 1.79 | E7: 10 | F7: =AVERAGE(N7,N22) -> 0.2 | G7: =MAX(O7,O22) -> 0.67 | J7: A1 | K7: Jan | L7: 0.21 | M7: 1.79 | N7: 0.21 | O7: 0.67
A8: Feb | B8: 20 | C8: =AVERAGE(L8,L23) -> 0.14 | D8: =MAX(M8,M23) -> 1.11 | E8: 10 | F8: =AVERAGE(N8,N23) -> 0.145 | G8: =MAX(O8,O23) -> 0.26 | K8: Feb | L8: 0.18 | M8: 1.11 | N8: 0.18 | O8: 0.26
A9: Mar | B9: 20 | C9: 0.215 | D9: 3.08 | E9: 10 | F9: 0.205 | G9: 0.3 | K9: Mar | L9: 0.22 | M9: 2.04 | N9: 0.21 | O9: 0.3 | Q9: Whole Installation table A5:G18:
A10: Apr | B10: 20 | C10: 0.215 | D10: 2.9 | E10: 10 | F10: 0.205 | G10: 0.26 | K10: Apr | L10: 0.2 | M10: 2.9 | N10: 0.2 | O10: 0.25 | Q10: Mean: for 1/2 hourly and daily periods calculate mean of values across all operational combustion lines for the month
A11: May | B11: 20 | C11: 0.205 | D11: 2.64 | E11: 10 | F11: 0.205 | G11: 0.28 | K11: May | L11: 0.2 | M11: 2.45 | N11: 0.2 | O11: 0.26
A12: Jun | B12: 20 | C12: 0.265 | D12: 2.92 | E12: 10 | F12: 0.255 | G12: 0.74 | K12: Jun | L12: 0.26 | M12: 2.82 | N12: 0.26 | O12: 0.74
A13: Jul | B13: 20 | C13: 0.245 | D13: 2.34 | E13: 10 | F13: 0.235 | G13: 0.45 | K13: Jul | L13: 0.19 | M13: 2.34 | N13: 0.18 | O13: 0.26 | Q13: Maximum: for 1/2 hourly and daily periods use the highest value across all operational combustion lines for the month
A14: Aug | B14: 20 | C14: 0.305 | D14: 3.13 | E14: 10 | F14: 0.3 | G14: 0.56 | K14: Aug | L14: 0.32 | M14: 3.13 | N14: 0.31 | O14: 0.56
A15: Sep | B15: 20 | C15: 0.195 | D15: 1.9 | E15: 10 | F15: 0.19 | G15: 0.3 | K15: Sep | L15: 0.18 | M15: 1.84 | N15: 0.18 | O15: 0.3
A16: Oct | B16: 20 | C16: 0.21 | D16: 4.56 | E16: 10 | F16: 0.205 | G16: 0.3 | K16: Oct | L16: 0.23 | M16: 1.28 | N16: 0.22 | O16: 0.3
A17: Nov | B17: 20 | C17: 0.205 | D17: 2.95 | E17: 10 | F17: 0.205 | G17: 0.33 | K17: Nov | L17: 0.22 | M17: 2.95 | N17: 0.22 | O17: 0.33
A18: Dec | B18: 20 | C18: 0.24 | D18: 3.91 | E18: 10 | F18: 0.235 | G18: 0.73 | K18: Dec | L18: 0.31 | M18: 3.91 | N18: 0.3 | O18: 0.73
K19: Annual | L19: =AVERAGE(L7:L18) -> 0.2266666667 | M19: =MAX(M7:M18) -> 3.91 | N19: =AVERAGE(N7:N18) -> 0.2225 | O19: =MAX(O7:O18) -> 0.74
J21: =+A5 -> 2025 | K21: mg/Nm3 | L21: Monthly mean of half-hourly averages | M21: Highest half- hourly average | N21: Monthly mean of daily averages | O21: Highest daily average
J22: A2 | K22: Jan | L22: 0.19 | M22: 1.37 | N22: 0.19 | O22: 0.57
K23: Feb | L23: 0.1 | M23: 0.48 | N23: 0.11 | O23: 0.11
K24: Mar | L24: 0.21 | M24: 3.08 | N24: 0.2 | O24: 0.3
K25: Apr | L25: 0.23 | M25: 2.33 | N25: 0.21 | O25: 0.26
K26: May | L26: 0.21 | M26: 2.64 | N26: 0.21 | O26: 0.28
K27: Jun | L27: 0.27 | M27: 2.92 | N27: 0.25 | O27: 0.43
K28: Jul | L28: 0.3 | M28: 2.02 | N28: 0.29 | O28: 0.45
K29: Aug | L29: 0.29 | M29: 2.77 | N29: 0.29 | O29: 0.45
K30: Sep | L30: 0.21 | M30: 1.9 | N30: 0.2 | O30: 0.26
K31: Oct | L31: 0.19 | M31: 4.56 | N31: 0.19 | O31: 0.27
K32: Nov | L32: 0.19 | M32: 2.42 | N32: 0.19 | O32: 0.3
K33: Dec | L33: 0.17 | M33: 1.62 | N33: 0.17 | O33: 0.25
K34: Annual | L34: =AVERAGE(L22:L33) -> 0.2133333333 | M34: =MAX(M22:M33) -> 4.56 | N34: =AVERAGE(N22:N33) -> 0.2083333333 | O34: =MAX(O22:O33) -> 0.57
J36: =+A5 -> 2025 | K36: mg/Nm3 | L36: Monthly mean of half-hourly averages | M36: Highest half- hourly average | N36: Monthly mean of daily averages | O36: Highest daily average
J37: A3 | K37: Jan
K38: Feb
K39: Mar
K40: Apr
K41: May
K42: Jun
K43: Jul
K44: Aug
K45: Sep
K46: Oct
K47: Nov
A48: Comments : | K48: Dec
K49: Annual | L49: =AVERAGE(L37:L48) ->  | M49: =MAX(M37:M48) -> 0 | N49: =AVERAGE(N37:N48) ->  | O49: =MAX(O37:O48) -> 0
J51: =+A5 -> 2025 | K51: mg/Nm3 | L51: Monthly mean of half-hourly averages | M51: Highest half- hourly average | N51: Monthly mean of daily averages | O51: Highest daily average
J52: A4 | K52: Jan
K53: Feb
K54: Mar
K55: Apr
K56: May
K57: Jun
K58: Jul
K59: Aug
K60: Sep
K61: Oct
K62: Nov
K63: Dec
K64: Annual | L64: =AVERAGE(L52:L63) ->  | M64: =MAX(M52:M63) -> 0 | N64: =AVERAGE(N52:N63) ->  | O64: =MAX(O52:O63) -> 0
J66: =+A5 -> 2025 | K66: mg/Nm3 | L66: Monthly mean of half-hourly averages | M66: Highest half- hourly average | N66: Monthly mean of daily averages | O66: Highest daily average
J67: A5 | K67: Jan
K68: Feb
K69: Mar
K70: Apr
K71: May
K72: Jun
K73: Jul
K74: Aug
K75: Sep
K76: Oct
K77: Nov
K78: Dec
K79: Annual | L79: =AVERAGE(L67:L78) ->  | M79: =MAX(M67:M78) -> 0 | N79: =AVERAGE(N67:N78) ->  | O79: =MAX(O67:O78) -> 0

Sheet Particulates
A1: =+'Cover Page'!$B$29 -> Annual Performance Report 2025 | E1: =+'Cover Page'!$B$33 -> Kemsley Generating Station
A3: Monitoring of Particulate matter emissions | D3: Whole Installation | G3: See Notes in Cell Q3 | J3: =+A3 -> Monitoring of Particulate matter emissions | N3: Per Combustion Line | Q3: Notes:
A5: =+'Cover Page'!C39 -> 2025 | B5: 1/2 Hourly Reference Periods | E5: Daily Reference Periods | Q5: User to add logic to complete Whole installation, Table A5:G18. From the data in Per Combustion Line, Table J6:O79, subject to No. of lines installed
A6: mg/Nm3 | B6: 1/2 hourly PM ELV | C6: Monthly mean of half-hourly averages | D6: Highest half- hourly average | E6: Daily PM ELV | F6: Monthly mean of daily averages | G6: Highest daily average | J6: =+A5 -> 2025 | K6: mg/Nm3 | L6: Monthly mean of half-hourly averages | M6: Highest half- hourly average | N6: Monthly mean of daily averages | O6: Highest daily average
A7: Jan | B7: 30 | C7: =AVERAGE(L7,L22) -> 0.085 | D7: =MAX(M7,M22) -> 0.4 | E7: 5 | F7: =AVERAGE(N7,N22) -> 0.085 | G7: =AVERAGE(O7,O22) -> 0.095 | J7: A1 | K7: Jan | L7: 0.08 | M7: 0.23 | N7: 0.08 | O7: 0.09
A8: Feb | B8: 30 | C8: =AVERAGE(L8,L23) -> 0.085 | D8: =MAX(M8,M23) -> 0.13 | E8: 5 | F8: =AVERAGE(N8,N23) -> 0.085 | G8: =AVERAGE(O8,O23) -> 0.09 | K8: Feb | L8: 0.08 | M8: 0.13 | N8: 0.08 | O8: 0.09
A9: Mar | B9: 30 | C9: 0.24 | D9: 3.72 | E9: 5 | F9: 0.215 | G9: 1.28 | K9: Mar | L9: 0.21 | M9: 1.94 | N9: 0.17 | O9: 0.56
A10: Apr | B10: 30 | C10: 0.23 | D10: 0.55 | E10: 5 | F10: 0.235 | G10: 0.335 | K10: Apr | L10: 0.25 | M10: 0.55 | N10: 0.25 | O10: 0.36 | Q10: Whole Installation table A5:G18:
A11: May | B11: 30 | C11: 0.395 | D11: 1.29 | E11: 5 | F11: 0.4 | G11: 0.665 | K11: May | L11: 0.48 | M11: 1.29 | N11: 0.49 | O11: 0.8 | Q11: Mean: for 1/2 hourly and daily periods calculate mean of values across all operational combustion lines for the month
A12: Jun | B12: 30 | C12: 0.46 | D12: 1.19 | E12: 5 | F12: 0.455 | G12: 0.65 | K12: Jun | L12: 0.5 | M12: 1.19 | N12: 0.49 | O12: 0.7
A13: Jul | B13: 30 | C13: 0.51 | D13: 2.04 | E13: 5 | F13: 0.535 | G13: 0.88 | K13: Jul | L13: 0.6 | M13: 2.04 | N13: 0.63 | O13: 0.94
A14: Aug | B14: 30 | C14: 0.565 | D14: 1.87 | E14: 5 | F14: 0.57 | G14: 0.925 | K14: Aug | L14: 0.5 | M14: 1.69 | N14: 0.52 | O14: 1.03 | Q14: Maximum: for 1/2 hourly and daily periods use the highest value across all operational combustion lines for the month
A15: Sep | B15: 30 | C15: 0.73 | D15: 4.17 | E15: 5 | F15: 0.745 | G15: 1.555 | K15: Sep | L15: 0.64 | M15: 1.64 | N15: 0.65 | O15: 0.97
A16: Oct | B16: 30 | C16: 0.675 | D16: 1.94 | E16: 5 | F16: 0.68 | G16: 1.12 | K16: Oct | L16: 0.49 | M16: 1.81 | N16: 0.5 | O16: 0.89
A17: Nov | B17: 30 | C17: 1.02 | D17: 20.76 | E17: 5 | F17: 1.01 | G17: 1.265 | K17: Nov | L17: 0.77 | M17: 1.33 | N17: 0.77 | O17: 0.92
A18: Dec | B18: 30 | C18: 1.14 | D18: 7.48 | E18: 5 | F18: 1.165 | G18: 2.305 | K18: Dec | L18: 0.82 | M18: 2.98 | N18: 0.85 | O18: 1.58
K19: Annual | L19: =AVERAGE(L7:L18) -> 0.4516666667 | M19: =MAX(M7:M18) -> 2.98 | N19: =AVERAGE(N7:N18) -> 0.4566666667 | O19: =MAX(O7:O18) -> 1.58
J21: =+A5 -> 2025 | K21: mg/Nm3 | L21: Monthly mean of half-hourly averages | M21: Highest half- hourly average | N21: Monthly mean of daily averages | O21: Highest daily average
J22: A2 | K22: Jan | L22: 0.09 | M22: 0.4 | N22: 0.09 | O22: 0.1
K23: Feb | L23: 0.09 | M23: 0.1 | N23: 0.09 | O23: 0.09
K24: Mar | L24: 0.27 | M24: 3.72 | N24: 0.26 | O24: 2
K25: Apr | L25: 0.21 | M25: 0.43 | N25: 0.22 | O25: 0.31
K26: May | L26: 0.31 | M26: 0.79 | N26: 0.31 | O26: 0.53
K27: Jun | L27: 0.42 | M27: 0.93 | N27: 0.42 | O27: 0.6
K28: Jul | L28: 0.42 | M28: 1.17 | N28: 0.44 | O28: 0.82
K29: Aug | L29: 0.63 | M29: 1.87 | N29: 0.62 | O29: 0.82
K30: Sep | L30: 0.82 | M30: 4.17 | N30: 0.84 | O30: 2.14
K31: Oct | L31: 0.86 | M31: 1.94 | N31: 0.86 | O31: 1.35
K32: Nov | L32: 1.27 | M32: 20.76 | N32: 1.25 | O32: 1.61
K33: Dec | L33: 1.46 | M33: 7.48 | N33: 1.48 | O33: 3.03
K34: Annual | L34: =AVERAGE(L22:L33) -> 0.5708333333 | M34: =MAX(M22:M33) -> 20.76 | N34: =AVERAGE(N22:N33) -> 0.5733333333 | O34: =MAX(O22:O33) -> 3.03
J36: =+A5 -> 2025 | K36: mg/Nm3 | L36: Monthly mean of half-hourly averages | M36: Highest half- hourly average | N36: Monthly mean of daily averages | O36: Highest daily average
J37: A3 | K37: Jan
K38: Feb
K39: Mar
K40: Apr
K41: May
K42: Jun
K43: Jul
K44: Aug
K45: Sep
K46: Oct
K47: Nov
A48: Comments : | K48: Dec
K49: Annual | L49: =AVERAGE(L37:L48) ->  | M49: =MAX(M37:M48) -> 0 | N49: =AVERAGE(N37:N48) ->  | O49: =MAX(O37:O48) -> 0
J51: =+A5 -> 2025 | K51: mg/Nm3 | L51: Monthly mean of half-hourly averages | M51: Highest half- hourly average | N51: Monthly mean of daily averages | O51: Highest daily average
J52: A4 | K52: Jan
K53: Feb
K54: Mar
K55: Apr
K56: May
K57: Jun
K58: Jul
K59: Aug
K60: Sep
K61: Oct
K62: Nov
K63: Dec
K64: Annual | L64: =AVERAGE(L52:L63) ->  | M64: =MAX(M52:M63) -> 0 | N64: =AVERAGE(N52:N63) ->  | O64: =MAX(O52:O63) -> 0
J66: =+A5 -> 2025 | K66: mg/Nm3 | L66: Monthly mean of half-hourly averages | M66: Highest half- hourly average | N66: Monthly mean of daily averages | O66: Highest daily average
J67: A5 | K67: Jan
K68: Feb
K69: Mar
K70: Apr
K71: May
K72: Jun
K73: Jul
K74: Aug
K75: Sep
K76: Oct
K77: Nov
K78: Dec
K79: Annual | L79: =AVERAGE(L67:L78) ->  | M79: =MAX(M67:M78) -> 0 | N79: =AVERAGE(N67:N78) ->  | O79: =MAX(O67:O78) -> 0

Sheet CO 0.5 hourly
A1: =+'Cover Page'!$B$29 -> Annual Performance Report 2025 | E1: =+'Cover Page'!$B$33 -> Kemsley Generating Station
A3: Monitoring of Carbon Monoxide (half hourly) | D3: Whole Installation | G3: See Notes in Cell Q3 | J3: =+A3 -> Monitoring of Carbon Monoxide (half hourly) | N3: Per Combustion Line | Q3: Notes:
A5: Please complete this tab for your plant if you have 1/2 hourly CO ELVs; otherwise, leave it blank and complete the CO 95% 10 min tab
Q7: User to add logic to complete Whole installation, Table A5:G18. From the data in Per Combustion Line, Table J6:O79, subject to No. of lines installed
A8: =+'Cover Page'!C39 -> 2025 | B8: 1/2 Hourly Reference Periods | E8: Daily Reference Periods
A9: mg/Nm3 | B9: 1/2 hourly CO ELV | C9: Monthly mean of half-hourly averages | D9: Highest half- hourly average | E9: Daily CO ELV | F9: Monthly mean of daily averages | G9: Highest daily average | J9: =+A8 -> 2025 | K9: mg/Nm3 | L9: Monthly mean of half-hourly averages | M9: Highest half- hourly average | N9: Monthly mean of daily averages | O9: Highest daily average
A10: Jan | B10: 100 | E10: 50 | J10: A1 | K10: Jan
A11: Feb | B11: =+B10 -> 100 | E11: =+E10 -> 50 | K11: Feb
A12: Mar | B12: =+B11 -> 100 | E12: =+E11 -> 50 | K12: Mar | Q12: Whole Installation table A5:G18:
A13: Apr | B13: 100 | E13: 50 | K13: Apr | Q13: Mean: for 1/2 hourly and daily periods calculate mean of values across all operational combustion lines for the month
A14: May | B14: 100 | E14: 50 | K14: May
A15: Jun | B15: 100 | E15: 50 | K15: Jun
A16: Jul | B16: 100 | E16: 50 | K16: Jul | Q16: Maximum: for 1/2 hourly and daily periods use the highest value across all operational combustion lines for the month
A17: Aug | B17: 100 | E17: 50 | K17: Aug
A18: Sep | B18: 100 | E18: 50 | K18: Sep
A19: Oct | B19: 100 | E19: 50 | K19: Oct
A20: Nov | B20: 100 | E20: 50 | K20: Nov
A21: Dec | B21: 100 | E21: 50 | K21: Dec
K22: Annual | L22: =AVERAGE(L10:L21) ->  | M22: =MAX(M10:M21) -> 0 | N22: =AVERAGE(N10:N21) ->  | O22: =MAX(O10:O21) -> 0
J24: =+A8 -> 2025 | K24: mg/Nm3 | L24: Monthly mean of half-hourly averages | M24: Highest half- hourly average | N24: Monthly mean of daily averages | O24: Highest daily average
J25: A2 | K25: Jan
K26: Feb
K27: Mar
K28: Apr
K29: May
K30: Jun
K31: Jul
K32: Aug
K33: Sep
K34: Oct
K35: Nov
K36: Dec
K37: Annual | L37: =AVERAGE(L25:L36) ->  | M37: =MAX(M25:M36) -> 0 | N37: =AVERAGE(N25:N36) ->  | O37: =MAX(O25:O36) -> 0
J39: =+A8 -> 2025 | K39: mg/Nm3 | L39: Monthly mean of half-hourly averages | M39: Highest half- hourly average | N39: Monthly mean of daily averages | O39: Highest daily average
J40: A3 | K40: Jan
K41: Feb
K42: Mar
K43: Apr
K44: May
K45: Jun
K46: Jul
K47: Aug
K48: Sep
K49: Oct
K50: Nov
A51: Comments : | K51: Dec
K52: Annual | L52: =AVERAGE(L40:L51) ->  | M52: =MAX(M40:M51) -> 0 | N52: =AVERAGE(N40:N51) ->  | O52: =MAX(O40:O51) -> 0
J54: =+A8 -> 2025 | K54: mg/Nm3 | L54: Monthly mean of half-hourly averages | M54: Highest half- hourly average | N54: Monthly mean of daily averages | O54: Highest daily average
J55: A4 | K55: Jan
K56: Feb
K57: Mar
K58: Apr
K59: May
K60: Jun
K61: Jul
K62: Aug
K63: Sep
K64: Oct
K65: Nov
K66: Dec
K67: Annual | L67: =AVERAGE(L55:L66) ->  | M67: =MAX(M55:M66) -> 0 | N67: =AVERAGE(N55:N66) ->  | O67: =MAX(O55:O66) -> 0
J69: =+A8 -> 2025 | K69: mg/Nm3 | L69: Monthly mean of half-hourly averages | M69: Highest half- hourly average | N69: Monthly mean of daily averages | O69: Highest daily average
J70: A5 | K70: Jan
K71: Feb
K72: Mar
K73: Apr
K74: May
K75: Jun
K76: Jul
K77: Aug
K78: Sep
K79: Oct
K80: Nov
K81: Dec
K82: Annual | L82: =AVERAGE(L70:L81) ->  | M82: =MAX(M70:M81) -> 0 | N82: =AVERAGE(N70:N81) ->  | O82: =MAX(O70:O81) -> 0

Sheet CO 95% 10 min
A1: =+'Cover Page'!$B$29 -> Annual Performance Report 2025 | E1: =+'Cover Page'!$B$33 -> Kemsley Generating Station
A3: Monitoring of Carbon Monoxide (10-minute avg) | E3: Whole Installation | H3: See Notes in Cell S3 | J3: =+A3 -> Monitoring of Carbon Monoxide (10-minute avg) | O3: Per Combustion Line | Q3: Notes: | S3: Notes:
A5: Please complete this tab for your plant if you have 10-minute average CO ELVs; otherwise, leave it blank and complete the CO 0.5 hourly tab
S7: User to add logic to complete Whole installation, Table A5:H18. From the data in Per Combustion Line, Table K6:Q79, subject to No. of lines installed
A8: =+'Cover Page'!C39 -> 2025 | B8: 10-minute Reference Periods | F8: Daily Reference Periods
A9: mg/Nm3 | B9: 95%ile 10-min avg CO ELV | C9: Highest daily 95%ile 10-min average | D9: Monthly mean of 10-min averages | E9: Highest 10-min average | F9: Daily CO ELV | G9: Monthly mean of daily averages | H9: Highest daily average | K9: =+A8 -> 2025 | L9: mg/Nm3 | M9: Highest daily 95%ile 10-min average | N9: Monthly mean of 10-min averages | O9: Highest 10-min average | P9: Monthly mean of daily averages | Q9: Highest daily average
A10: Jan | B10: 150 | C10: =MAX(M10,M25) -> 6.48 | D10: =AVERAGE(N10,N25) -> 2.755 | E10: =MAX(O10,O25) -> 123.02 | F10: 50 | G10: =AVERAGE(P10,P25) -> 2.76 | H10: =MAX(Q10,Q25) -> 4.8 | K10: A1 | L10: Jan | M10: 6.48 | N10: 3.47 | O10: 123.02 | P10: 3.47 | Q10: 4.8
A11: Feb | B11: =+B10 -> 150 | C11: =MAX(M11,M26) -> 6.12 | D11: =AVERAGE(N11,N26) -> 2.59 | E11: =MAX(O11,O26) -> 69.67 | F11: =+F10 -> 50 | G11: =AVERAGE(P11,P26) -> 2.625 | H11: =MAX(Q11,Q26) -> 3.84 | L11: Feb | M11: 6.12 | N11: 3.26 | O11: 47.9 | P11: 3.25 | Q11: 3.84
A12: Mar | B12: =+B11 -> 150 | C12: 11.02 | D12: 2.87 | E12: 243.61 | F12: =+F11 -> 50 | G12: 2.785 | H12: 4.84 | L12: Mar | M12: 11.02 | N12: 3.53 | O12: 107.05 | P12: 3.45 | Q12: 4.84 | S12: Whole Installation table A5:H18:
A13: Apr | B13: 150 | C13: 20.98 | D13: 2.925 | E13: 260.27 | F13: 50 | G13: 2.915 | H13: 5.2 | L13: Apr | M13: 20.98 | N13: 3.8 | O13: 260.27 | P13: 3.8 | Q13: 5.2 | S13: Mean: for 10-min and daily periods use average of all operational combustion lines.
A14: May | B14: 150 | C14: 17.52 | D14: 2.865 | E14: 222.96 | F14: 50 | G14: 2.84 | H14: 5.56 | L14: May | M14: 17.52 | N14: 3.76 | O14: 171.91 | P14: 3.76 | Q14: 5.56
A15: Jun | B15: 150 | C15: 12.55 | D15: 2.885 | E15: 214.38 | F15: 50 | G15: 2.855 | H15: 5.38 | L15: Jun | M15: 12.55 | N15: 3.6 | O15: 214.38 | P15: 3.52 | Q15: 5.38
A16: Jul | B16: 150 | C16: 8.25 | D16: 2.5 | E16: 241.32 | F16: 50 | G16: 2.455 | H16: 5.5 | L16: Jul | M16: 8.06 | N16: 3.2 | O16: 241.32 | P16: 3.12 | Q16: 5.5 | S16: Maximum: for 10-min and daily periods use the highest of all operational combustion lines in any month.
A17: Aug | B17: 150 | C17: 25.66 | D17: 3.005 | E17: 198.58 | F17: 50 | G17: 3.01 | H17: 8.43 | L17: Aug | M17: 25.66 | N17: 4.1 | O17: 198.58 | P17: 4.13 | Q17: 8.43
A18: Sep | B18: 150 | C18: 27.14 | D18: 3.15 | E18: 213.54 | F18: 50 | G18: 3.16 | H18: 7.14 | L18: Sep | M18: 27.14 | N18: 3.85 | O18: 187.57 | P18: 3.88 | Q18: 7.14
A19: Oct | B19: 150 | C19: 27.71 | D19: 3.53 | E19: 698.79 | F19: 50 | G19: 3.545 | H19: 7.05 | L19: Oct | M19: 24.44 | N19: 4.19 | O19: 121.39 | P19: 4.22 | Q19: 6.42
A20: Nov | B20: 150 | C20: 21.07 | D20: 3.6 | E20: 295.94 | F20: 50 | G20: 3.595 | H20: 7.17 | L20: Nov | M20: 21.07 | N20: 4.46 | O20: 295.94 | P20: 4.46 | Q20: 7.17
A21: Dec | B21: 150 | C21: 64.05 | D21: 3.88 | E21: 515.76 | F21: 50 | G21: 3.93 | H21: 10.76 | L21: Dec | M21: 64.05 | N21: 5.54 | O21: 515.76 | P21: 5.64 | Q21: 10.76
L22: Annual | M22: =MAX(M10:M21) -> 64.05 | N22: =AVERAGE(N10:N21) -> 3.896666667 | O22: =MAX(O10:O21) -> 515.76 | P22: =AVERAGE(P10:P21) -> 3.891666667 | Q22: =MAX(Q10:Q21) -> 10.76
K24: =+A8 -> 2025 | L24: mg/Nm3 | M24: Highest daily 95%ile 10-min average | N24: Monthly mean of 10-min averages | O24: Highest 10-min average | P24: Monthly mean of daily averages | Q24: Highest daily average
K25: A2 | L25: Jan | M25: 5.15 | N25: 2.04 | O25: 85.96 | P25: 2.05 | Q25: 2.93
L26: Feb | M26: 2 | N26: 1.92 | O26: 69.67 | P26: 2 | Q26: 2.06
L27: Mar | M27: 5.85 | N27: 2.21 | O27: 243.61 | P27: 2.12 | Q27: 4.51
L28: Apr | M28: 6.27 | N28: 2.05 | O28: 127.27 | P28: 2.03 | Q28: 3.15
L29: May | M29: 5.64 | N29: 1.97 | O29: 222.96 | P29: 1.92 | Q29: 2.73
L30: Jun | M30: 11.45 | N30: 2.17 | O30: 176.95 | P30: 2.19 | Q30: 4.78
L31: Jul | M31: 8.25 | N31: 1.8 | O31: 106.76 | P31: 1.79 | Q31: 3.14
L32: Aug | M32: 15.7 | N32: 1.91 | O32: 158.82 | P32: 1.89 | Q32: 3.38
L33: Sep | M33: 13.86 | N33: 2.45 | O33: 213.54 | P33: 2.44 | Q33: 5.64
L34: Oct | M34: 27.71 | N34: 2.87 | O34: 698.79 | P34: 2.87 | Q34: 7.05
L35: Nov | M35: 11.44 | N35: 2.74 | O35: 251.95 | P35: 2.73 | Q35: 4.51
L36: Dec | M36: 9.65 | N36: 2.22 | O36: 222.96 | P36: 2.22 | Q36: 4.8
L37: Annual | M37: =MAX(M25:M36) -> 27.71 | N37: =AVERAGE(N25:N36) -> 2.195833333 | O37: =MAX(O25:O36) -> 698.79 | P37: =AVERAGE(P25:P36) -> 2.1875 | Q37: =MAX(Q25:Q36) -> 7.05
K39: =+A8 -> 2025 | L39: mg/Nm3 | M39: Highest daily 95%ile 10-min average | N39: Monthly mean of 10-min averages | O39: Highest 10-min average | P39: Monthly mean of daily averages | Q39: Highest daily average
K40: A3 | L40: Jan
L41: Feb
L42: Mar
L43: Apr
L44: May
L45: Jun
L46: Jul
L47: Aug
L48: Sep
L49: Oct
L50: Nov
A51: Comments : | L51: Dec
A52: Environment Agency explanatory note: The 10-minute average ELV is based on the “95th percentile”. In this case this means that 95% of the 10 minute averages in the relevant 24-hour period (i.e. 137) must be below 150 mg/Nm3, and 5% (i.e. 7) are allowed to be any value above 150 mg/Nm3. Whilst we expect operators to minimise CO emissions at all times, it is perfectly acceptable for the value of the maximum 10-minute average to be above 150 mg/Nm3, provided the 95th percentile ELV has been met for that period. | L52: Annual | M52: =AVERAGE(M40:M51) ->  | O52: =MAX(O40:O51) -> 0 | P52: =AVERAGE(P40:P51) ->  | Q52: =MAX(Q40:Q51) -> 0
K54: =+A8 -> 2025 | L54: mg/Nm3 | M54: Highest daily 95%ile 10-min average | N54: Monthly mean of 10-min averages | O54: Highest 10-min average | P54: Monthly mean of daily averages | Q54: Highest daily average
K55: A4 | L55: Jan
L56: Feb
L57: Mar
L58: Apr
L59: May
L60: Jun
L61: Jul
L62: Aug
L63: Sep
L64: Oct
L65: Nov
L66: Dec
L67: Annual | M67: =AVERAGE(M55:M66) ->  | O67: =MAX(O55:O66) -> 0 | P67: =AVERAGE(P55:P66) ->  | Q67: =MAX(Q55:Q66) -> 0
K69: =+A8 -> 2025 | L69: mg/Nm3 | M69: 95%ile 10-min avg maximum | N69: Monthly CO 10-min avg mean | O69: 10-min avg maximum | P69: Monthly daily mean | Q69: Monthly daily maximum
K70: A5 | L70: Jan
L71: Feb
L72: Mar
L73: Apr
L74: May
L75: Jun
L76: Jul
L77: Aug
L78: Sep
L79: Oct
L80: Nov
L81: Dec
L82: Annual | M82: =AVERAGE(M70:M81) ->  | O82: =MAX(O70:O81) -> 0 | P82: =AVERAGE(P70:P81) ->  | Q82: =MAX(Q70:Q81) -> 0

Sheet NH3
A1: =+'Cover Page'!$B$29 -> Annual Performance Report 2025 | E1: =+'Cover Page'!$B$33 -> Kemsley Generating Station
A3: Monitoring of Ammnonia emissions | D3: Whole Installation | G3: See Notes in Cell Q3 | J3: =+A3 -> Monitoring of Ammnonia emissions | N3: Per Combustion Line | Q3: Notes:
Q4: User to add logic to complete Whole installation, Table A5:G18. From the data in Per Combustion Line, Table J6:O79, subject to No. of lines installed
A5: =+'Cover Page'!C39 -> 2025 | B5: 1/2 Hourly Reference Periods | E5: Daily Reference Periods
A6: mg/Nm3 | B6: 1/2 hourly NH3 ELV | C6: Monthly mean of half-hourly averages | D6: Highest half- hourly average | E6: Daily NH3 ELV | F6: Monthly mean of daily averages | G6: Highest daily average | J6: =+A5 -> 2025 | K6: mg/Nm3 | L6: Monthly mean of half-hourly averages | M6: Highest half- hourly average | N6: Monthly mean of daily averages | O6: Highest daily average
A7: Jan | B7: None | C7: =AVERAGE(L7,L22) -> 0.375 | D7: =MAX(M7,M22) -> 2.35 | E7: 15 | F7: =AVERAGE(N7,N22) -> 0.37 | G7: =MAX(O7,O22) -> 1.3 | J7: A1 | K7: Jan | L7: 0.64 | M7: 2.35 | N7: 0.64 | O7: 1.3
A8: Feb | B8: =+B7 -> None | C8: =AVERAGE(L8,L23) -> 0.305 | D8: =MAX(M8,M23) -> 1.66 | E8: 15 | F8: =AVERAGE(N8,N23) -> 0.285 | G8: =MAX(O8,O23) -> 0.72 | K8: Feb | L8: 0.52 | M8: 1.66 | N8: 0.49 | O8: 0.72
A9: Mar | B9: =+B8 -> None | C9: 0.54 | D9: 5.86 | E9: 15 | F9: 0.485 | G9: 1.68 | K9: Mar | L9: 0.94 | M9: 5.86 | N9: 0.85 | O9: 1.68 | Q9: Whole Installation table A5:G18:
A10: Apr | B10: None | C10: 0.325 | D10: 3.23 | E10: 15 | F10: 0.31 | G10: 0.99 | K10: Apr | L10: 0.49 | M10: 3.23 | N10: 0.49 | O10: 0.99 | Q10: Mean: for 1/2 hourly and daily periods calculate mean of values across all operational combustion lines for the month
A11: May | B11: None | C11: 0.355 | D11: 2.28 | E11: 15 | F11: 0.355 | G11: 1.35 | K11: May | L11: 0.59 | M11: 2.28 | N11: 0.59 | O11: 1.35
A12: Jun | B12: None | C12: 0.365 | D12: 4.53 | E12: 15 | F12: 0.355 | G12: 1.34 | K12: Jun | L12: 0.57 | M12: 4.53 | N12: 0.58 | O12: 1.34
A13: Jul | B13: None | C13: 0.52 | D13: 6.58 | E13: 15 | F13: 0.535 | G13: 3.08 | K13: Jul | L13: 0.87 | M13: 6.58 | N13: 0.9 | O13: 3.08 | Q13: Maximum: for 1/2 hourly and daily periods use the highest value across all operational combustion lines for the month
A14: Aug | B14: None | C14: 0.5 | D14: 22.01 | E14: 15 | F14: 0.515 | G14: 1.74 | K14: Aug | L14: 0.87 | M14: 22.01 | N14: 0.9 | O14: 1.74
A15: Sep | B15: None | C15: 0.585 | D15: 2.95 | E15: 15 | F15: 0.595 | G15: 1.39 | K15: Sep | L15: 1 | M15: 2.95 | N15: 1.02 | O15: 1.39
A16: Oct | B16: None | C16: 0.825 | D16: 4.08 | E16: 15 | F16: 0.835 | G16: 1.82 | K16: Oct | L16: 1.42 | M16: 4.08 | N16: 1.44 | O16: 1.82
A17: Nov | B17: None | C17: 0.73 | D17: 3.52 | E17: 15 | F17: 0.725 | G17: 1.64 | K17: Nov | L17: 1.1 | M17: 3.52 | N17: 1.1 | O17: 1.64
A18: Dec | B18: None | C18: 0.645 | D18: 2.85 | E18: 15 | F18: 0.615 | G18: 1.4 | K18: Dec | L18: 0.99 | M18: 2.85 | N18: 0.93 | O18: 1.4
K19: Annual | L19: =AVERAGE(L7:L18) -> 0.8333333333 | M19: =MAX(M7:M18) -> 22.01 | N19: =AVERAGE(N7:N18) -> 0.8275 | O19: =MAX(O7:O18) -> 3.08
J21: =+A5 -> 2025 | K21: mg/Nm3 | L21: Monthly mean of half-hourly averages | M21: Highest half- hourly average | N21: Monthly mean of daily averages | O21: Highest daily average
J22: A2 | K22: Jan | L22: 0.11 | M22: 1.36 | N22: 0.1 | O22: 0.19
K23: Feb | L23: 0.09 | M23: 0.15 | N23: 0.08 | O23: 0.09
K24: Mar | L24: 0.14 | M24: 3.64 | N24: 0.12 | O24: 0.43
K25: Apr | L25: 0.16 | M25: 1.79 | N25: 0.13 | O25: 0.42
K26: May | L26: 0.12 | M26: 0.49 | N26: 0.12 | O26: 0.23
K27: Jun | L27: 0.16 | M27: 3.96 | N27: 0.13 | O27: 0.44
K28: Jul | L28: 0.17 | M28: 1.03 | N28: 0.17 | O28: 0.35
K29: Aug | L29: 0.13 | M29: 0.35 | N29: 0.13 | O29: 0.19
K30: Sep | L30: 0.17 | M30: 0.78 | N30: 0.17 | O30: 0.25
K31: Oct | L31: 0.23 | M31: 0.88 | N31: 0.23 | O31: 0.4
K32: Nov | L32: 0.36 | M32: 1 | N32: 0.35 | O32: 0.61
K33: Dec | L33: 0.3 | M33: 0.82 | N33: 0.3 | O33: 0.52
K34: Annual | L34: =AVERAGE(L22:L33) -> 0.1783333333 | M34: =MAX(M22:M33) -> 3.96 | N34: =AVERAGE(N22:N33) -> 0.1691666667 | O34: =MAX(O22:O33) -> 0.61
J36: =+A5 -> 2025 | K36: mg/Nm3 | L36: Monthly mean of half-hourly averages | M36: Highest half- hourly average | N36: Monthly mean of daily averages | O36: Highest daily average
J37: A3 | K37: Jan
K38: Feb
K39: Mar
K40: Apr
K41: May
K42: Jun
K43: Jul
K44: Aug
K45: Sep
K46: Oct
K47: Nov
A48: Comments : | K48: Dec
A49: An indicated ELV value of zero in the table above means that no ammonia limit is/was set in the permit. | K49: Annual | L49: =AVERAGE(L37:L48) ->  | M49: =MAX(M37:M48) -> 0 | N49: =AVERAGE(N37:N48) ->  | O49: =MAX(O37:O48) -> 0
J51: =+A5 -> 2025 | K51: mg/Nm3 | L51: Monthly mean of half-hourly averages | M51: Highest half- hourly average | N51: Monthly mean of daily averages | O51: Highest daily average
J52: A4 | K52: Jan
K53: Feb
K54: Mar
K55: Apr
K56: May
K57: Jun
K58: Jul
K59: Aug
K60: Sep
K61: Oct
K62: Nov
K63: Dec
K64: Annual | L64: =AVERAGE(L52:L63) ->  | M64: =MAX(M52:M63) -> 0 | N64: =AVERAGE(N52:N63) ->  | O64: =MAX(O52:O63) -> 0
J66: =+A5 -> 2025 | K66: mg/Nm3 | L66: Monthly mean of half-hourly averages | M66: Highest half- hourly average | N66: Monthly mean of daily averages | O66: Highest daily average
J67: A5 | K67: Jan
K68: Feb
K69: Mar
K70: Apr
K71: May
K72: Jun
K73: Jul
K74: Aug
K75: Sep
K76: Oct
K77: Nov
K78: Dec
K79: Annual | L79: =AVERAGE(L67:L78) ->  | M79: =MAX(M67:M78) -> 0 | N79: =AVERAGE(N67:N78) ->  | O79: =MAX(O67:O78) -> 0

Sheet Template changes log
A1: Log of changes to template (Environment Agency use only)
A3: Date | B3: Description of change | C3: New version number and date
A4: 2024-01-16 | B4: Air (periodic) tab: corrected default O2 reference from 6 to 11% | C4: Version 23.5a (for incinerators) - 16/01/2024
A5: 2024-09-23 | B5: Air (periodic) tab: corrected symbol for Thallium to Tl
A6: 2024-09-23 | B6: Air (periodic) tab: removed last year's references to different emission limit values applying from 03/12/23 and updated all relevant ELVs
A7: 2024-09-23 | B7: Tabs for continuously monitored pollutants (HCl, SO2 etc.): changed terminology in table headings to improve clarity
A8: 2024-09-23 | B8: Tabs for continuously monitored pollutants (HCl, SO2 etc.): removed last year's references to different emission limit values applying from 03/12/23 and updated all relevant ELVs
A9: 2024-09-23 | B9: Perf 1 tab: updated formula for water usage to report m3 rather than litres and corrected error with formula copying operator name
A10: 2024-09-23 | B10: Operational Summary tab: table added on start-ups and shut-downs
A11: 2024-09-23 | B11: Operational Summary tab: table added on dioxins and mercury protocols
A12: 2024-09-23 | B12: Operational Summary tab: table added on AST, QAL 2 and calibration functions
A13: 2024-09-23 | B13: CO2 N2O tab: various changes made to notes to reflect the fact that most plants should now have calibrated CEMS and flow meters + some have C14 samplers and more up to date industry data | C13: Version 24a (for incinerators) - 23/09/24
A14: 2024-11-08 | B14: CO2 N2O tab: Changed the N2O CO2 equivalence factor from 298 to 265 in line with recently updated government greenhouse gas figures: https://www.gov.uk/government/publications/greenhouse-gas-reporting-conversion-factors-2024
A15: 2024-11-08 | B15: CO2 N2O tab: Added an additional requirement for municipal EfW plants to state the yearly average biogenic percentage of the waste by mass, and reference to a document which sets out a methodology for calculating NCV of waste from the results of C14 sampling.
A16: 2024-11-08 | B16: Permit Compliance tab: Two additional columns added + explanatory notes to the table entitled "Summary of non-compliances under the permit" to allow CCS scores to be stated where relevant.
A17: 2024-11-08 | B17: Residue Quality tab: Note added explaining application of TOC and LOI limits and asking operators to report both metrics where measured. | C17: Version 24.1a (for incinerators) - 08/11/24
A18: 2024-11-27 | B18: Operational Summary tab: table added on start-ups and shut-downs | C18: Version 24.2a (for incinerators) - 27/11/24
A19: 2025-11-27 | B19: Cover Page: Print as PDF and Print Report and pdf buttons deleted and blank columns removed; contents page deleted | C19: Version 25.1a (for incinerators) - 27/11/25
A20: 2025-11-27 | B20: Residue Quality tab renamed to "Residues", and Summary of residue handling table moved from Operational Summary tab to Residues tab.
A21: 2025-11-27 | B21: Various changes made to the Operational Data tab including • Reformatting of the rows under the Operational data heading (Rows 3-8) to make it clearer what information is required. • Amendment of the rows under the Energy Usage / Export heading (Rows 26-32) to calculate an “indicative parasitic load” (now excluding energy imported) • Amendment of the unit for gas usage from cubic feet to cubic metres (Row 50) • Some amendments to the first 2 notes and other minor edits • Deleted "Overall Availability, mean avg. of all lines, hrs" row
A22: 2025-11-27 | B22: Operational Summary tab: Note added requiring all emergency shut-downs be listed, irrespective of whether or not they were reportable.
A23: 2025-11-27 | B23: CO2 N2O tab: Note added to ask operators to ensure that relevant data reported here matches that which will be submitted under the Pollution Inventory
